{"text_format":"1","workbook":"xlsx","n_sheets":13,"sheets":["Inicio","Datos","GRF-226","GRF-227","GRF-228","GRF-229","GRF-230","GRF-231","GRF-232","GRF-233","GRF-234","GRF-235","GRF-236"],"not_rendered":{"charts":0,"images":9,"macros":1,"external_links":4,"defined_names":23,"comments":4,"pivot_tables":0},"unopened":[],"bounds":{"document_bytes":16777216,"sheet_cells":100000,"rows_first":2000,"rows_last":500,"rows_between":2000,"halvings":0,"cell_chars":16384,"cell_head_chars":4096},"cells_cut":0,"cells_raw":0,"read":"whole","date_system":"1900"}

{"sheet":"Inicio","index":0,"n_rows":37,"n_cols":10,"rows_kept":37,"cut":false,"hidden":false,"merged":[[13,1,13,12],[5,1,5,12],[1,1,3,2],[1,3,1,8],[1,9,1,10],[1,11,3,12],[2,3,2,8],[2,9,2,10],[3,3,3,8],[3,9,3,10],[36,3,36,4],[36,5,36,6],[36,7,36,10],[33,3,33,10],[34,3,34,4],[34,5,34,6],[34,7,34,10],[35,3,35,4],[35,5,35,6],[35,7,35,10]]}
[]
[null,null,null,"HOJA DE VIDA DE INDICADOR",null,null,null,null,null,"Código:  GI-GUI-002-FR-004"]
[null,null,null,"Macroproceso: Direccionamiento Estratégico",null,null,null,null,null,"Versión: 03"]
[null,null,null,"Proceso: Gestión Integrada",null,null,null,null,null,"Fecha de Aprobación: 14/06/2019"]
[]
[null,"Listado de Indicadores del Proceso"]
[]
[]
[]
[]
[]
[]
[]
[null,"Seleccione el indicador de su interés dando clic en el icono               :"]
[]
[]
[]
[]
[]
[]
[]
[]
[]
[]
[]
[]
[]
[]
[]
[]
[]
[]
[]
[null,null,null,"CONTROL DE CAMBIOS"]
[null,null,null,"Versión ",null,"Fecha",null,"Justificación "]
[null,null,null,"01",null,"2017-12-12",null,"Se crean los indicadores con código 226, 227, 228, 229, 230, 231, 232, 233, 234, 235 y 236."]
[null,null,null,"02",null,"2022-06-13",null,"Se actualizan los indicadores con código 227, 232, 233 y 234."]

{"sheet":"Datos","index":1,"n_rows":17,"n_cols":4,"rows_kept":17,"cut":false,"hidden":false,"merged":[]}
[]
[]
[]
[]
[]
[null,null,null,"GRF-226, Ejecución del Plan Anual de Caja"]
[null,null,null,"GRF-227, Cuentas de Reservas Pagas"]
[null,null,null,"GRF-228, Depuración de Cuentas"]
[null,null,null,"GRF-229, Eficiencia en Pagos"]
[null,null,null,"GRF-230, Informes Contables"]
[null,null,null,"GRF-231, Legalización de Avances"]
[null,null,null,"GRF-232, Movimiento de Certificados de Disponibilidad Presupuestal"]
[null,null,null,"GRF-233, Movimiento de Certificados de Registro Presupuestal"]
[null,null,null,"GRF-234, Órdenes de Pago Tramitadas"]
[null,null,null,"GRF-235, Registro de Ingresos"]
[null,null,null,"GRF-236, Registros Contables"]
[null,null,null," - Seleccione un indicador - "]

{"sheet":"GRF-226","index":2,"n_rows":76,"n_cols":13,"rows_kept":76,"cut":false,"hidden":false,"merged":[[76,9,78,12],[76,6,78,8],[76,3,78,5],[76,1,78,2],[71,10,71,12],[72,10,72,12],[73,10,73,12],[74,1,74,12],[75,1,75,2],[75,3,75,5],[69,1,69,12],[70,1,70,4],[70,5,70,8],[70,9,70,12],[67,4,67,6],[68,4,68,6],[67,7,67,9],[67,10,67,12],[75,6,75,8],[75,9,75,12],[71,2,71,4],[72,2,72,4],[73,2,73,4],[71,6,71,8],[72,6,72,8],[73,6,73,8],[55,2,55,12],[56,2,56,12],[68,7,68,9],[68,10,68,12],[57,2,57,12],[58,2,58,12],[59,2,59,12],[60,2,60,12],[61,1,61,12],[62,1,65,12],[66,1,66,12],[67,1,67,3],[68,1,68,3],[48,1,48,12],[41,1,41,4],[49,1,51,12],[52,1,52,12],[53,2,53,12],[54,2,54,12],[42,1,47,3],[42,8,43,8],[46,9,47,11],[46,12,47,12],[46,5,46,7],[27,6,27,8],[27,1,27,5],[32,1,32,12],[26,1,26,12],[27,9,27,12],[21,1,22,5],[23,11,25,12],[23,1,25,5],[37,7,39,8],[37,9,39,10],[37,11,39,12],[37,5,39,6],[28,9,29,12],[30,9,31,12],[36,11,36,12],[35,7,35,12],[34,4,34,5],[28,1,29,5],[30,1,31,5],[28,6,29,8],[30,6,31,8],[36,7,36,8],[36,9,36,10],[1,1,3,2],[1,3,1,8],[1,9,1,10],[1,11,3,12],[2,3,2,8],[2,9,2,10],[3,3,3,8],[3,9,3,10],[23,6,25,7],[23,8,25,8],[23,9,25,9],[23,10,25,10],[14,7,14,12],[15,7,19,12],[14,3,14,6],[15,3,19,6],[5,1,5,12],[7,1,7,12],[10,1,10,12],[20,1,20,12],[21,11,22,12],[21,6,22,7],[21,8,21,10],[14,1,14,2],[15,1,19,2],[4,1,4,12],[11,1,11,3],[11,7,11,9],[13,1,13,12],[8,1,8,2],[9,1,9,2],[8,3,8,8],[8,9,8,10],[8,11,8,12],[9,3,9,12],[40,1,40,12],[33,1,33,2],[33,4,33,5],[37,1,39,2],[37,3,39,4],[45,5,45,7],[45,9,45,11],[44,5,44,7],[43,9,43,11],[44,9,44,11],[41,5,41,12],[44,8,47,8],[42,5,42,7],[43,5,43,7],[42,9,42,11],[47,5,47,7],[33,7,33,8],[33,10,33,11],[35,1,35,6],[36,1,36,2],[36,3,36,4],[36,5,36,6],[34,1,34,2],[34,6,34,12]]}
[]
[null,null,null,"FORMATO: HOJA DE VIDA DEL INDICADOR",null,null,null,null,null,"Código:  GI-GUI-002-FR-004"]
[null,null,null,"Macroproceso: Direccionamiento Estratégico",null,null,null,null,null,"Versión: 03"]
[null,null,null,"Proceso: Gestión Integrada",null,null,null,null,null,"Fecha de Aprobación: 17/09/2014\n"]
[]
[null,"HOJA DE VIDA DEL INDICADOR"]
[]
[null,"DESCRIPCIÓN DEL INDICADOR"]
[null,"Nombre:",null,"Ejecución del Plan Anual de Caja",null,null,null,null,null,"Código:",null,"GC-226"]
[null,"Objetivo:",null,"Determinar el nivel de ejecución del Plan Anual de Caja de la vigencia."]
[]
[null,"Fecha de Creación",null,null,12,12,2017,"Fecha de Actualización",null,null,12,12,2017]
[]
[null," DESCRIPCIÓN DEL PROCESO"]
[null,"PROCESO",null,"OBJETIVO DEL PROCESO",null,null,null,"ALINEADO AL PLAN ESTRATÉGICO DE DESARROLLO"]
[null,"Gestión de Recursos Financieros",null,"Administrar, gestionar, registrar y controlar los recursos financieros en la Universidad Distrital Francisco José Caldas, cumpliendo con el marco, constitucional,  legal y normativo vigente; garantizando la transparencia y sostenibilidad financiera de acuerdo a los lineamientos establecidos en el contexto estratégico y misional de la institución.",null,null,null,"Lineamiento Estratégico 4. Garantizar, gestionar y proveer las condiciones institucionales, para el cumplimiento de las funciones universitarias y el bienestar de la comunidad.\n\nEstrategia 4.6 Participación efectiva, sostenible y transparente en la gestión administrativa y financiera."]
[]
[]
[]
[]
[null," FORMA DE CÁLCULO"]
[null,"FÓRMULA",null,null,null,null,"Unidad de Medida",null,"Tendencia esperada del Indicador",null,null,"Meta o Valor Esperado"]
[null,null,null,null,null,null,null,null,"Creciente","Decreciente","Estático"]
[null,"(Recursos ejecutados del Plan Anual de Caja / Recursos proyectados en el Plan Anual de Caja)*100",null,null,null,null,"Porcentaje",null,"X",null,null,1]
[]
[]
[null," VARIABLES DEL INDICADOR"]
[null,"NOMBRE",null,null,null,null,"UNIDAD DE MEDIDA",null,null,"FUENTE DE INFORMACIÓN"]
[null,"Recursos ejecutados del Plan Anual de Caja",null,null,null,null,"Número",null,null,"Tesorería General, Sistema de Información, SISPAC"]
[]
[null,"Recursos proyectados en el Plan Anual de Caja",null,null,null,null,"Número",null,null,"Tesorería General, Sistema de Información, SISPAC"]
[]
[null," PERIODICIDAD DE LA MEDICIÓN DEL INDICADOR"]
[null,"Mensual",null,"X","Trimestral",null,null,"Semestral",null,null,"Anual"]
[null,"Otro",null,null,"Cuál?"]
[null," RANGOS DE EVALUACIÓN",null,null,null,null,null,"QUIÉN REPORTA EL INDICADOR AL TABLERO"]
[null,"Crítico",null,"En Riesgo",null,"Adecuado",null,"Líder del Proceso",null,"Gestor del Proceso",null,"Equipo SIGUD"]
[null,"0%-74%",null,"75%-89%",null,"90% - 100%",null,null,null,"X"]
[]
[]
[null," TIPO DE INDICADOR"]
[null,"Nivel de Medición",null,null,null,"Dimensión de Evaluación"]
[null,"Intervención ",null,null,null,"Impacto",null,null,"Jerarquía","Estratégicos "]
[null,null,null,null,null,"Resultados ",null,null,null,"Gestión",null,null,"X"]
[null,null,null,null,null,"Producto",null,null,"Calidad","Eficacia"]
[null,null,null,null,null,"Proceso",null,null,null,"Eficiencia",null,null,"X"]
[null,null,null,null,null,"Insumo",null,null,null,"Efectividad"]
[null,null,null,null,"X","Economía "]
[null," INTERPRETACIÓN DE LOS RESULTADOS DEL INDICADOR (Cómo se lee el Indicador)"]
[null,"El resultado es el porcentaje de ejecución del Plan Anual de Caja respecto a lo programado inicialmente."]
[]
[]
[null,"Instrucciones para el cálculo de cada Variable"]
[null,"Numerador:"]
[null,"1.","Al final del periodo, la Tesorería General, mediante el Sistema de Información SISPAC, realiza una relación de los recursos ejecutados del Plan Anual de Caja."]
[null,"2."]
[null,"3."]
[null,"Denominador:"]
[null,"1.","Al final del periodo, la Tesorería General, mediante el Sistema de Información SISPAC, realiza una relación de los recursos proyectados en el Plan Anual de Caja."]
[null,"2."]
[null,"3."]
[null," Definición de Términos"]
[]
[]
[]
[]
[null," Responsables de la Medición"]
[null,"Nivel:",null,null,"Consolidar y Reportar Datos",null,null,"Seguimiento y Análisis",null,null,"Toma de Decisiones"]
[null,"Cargo:",null,null,"Profesional de la Tesorería General",null,null,"Tesorero(a) General",null,null,"Vicerrector Administrativo y Financiero, Rector"]
[null,"VERIFICACIÓN Y APROBACIÓN"]
[null,"ELABORÓ",null,null,null,"REVISÓ",null,null,null,"APROBÓ"]
[null,"Nombre:","Equipo SIGUD.",null,null,"Nombre:","Eusebio Antonio Rangel Roa.",null,null,"Nombre:","Eusebio Antonio Rangel Roa."]
[null,"Cargo:","N/A.",null,null,"Cargo:","Jefe División Recursos Financieros.",null,null,"Cargo:","Jefe División Recursos Financieros."]
[null,"Fecha:","12 de diciembre de 2017.",null,null,"Fecha:","12 de diciembre de 2017.",null,null,"Fecha:","12 de diciembre de 2017."]
[]
[null,"FECHA",null,"VERSIÓN",null,null,"CAMBIO",null,null,"MOTIVO"]

{"sheet":"GRF-227","index":3,"n_rows":61,"n_cols":15,"rows_kept":61,"cut":false,"hidden":false,"merged":[[60,1,60,2],[60,3,60,5],[60,6,60,8],[60,9,60,12],[57,1,57,12],[58,1,58,2],[58,3,58,5],[58,6,58,8],[58,9,58,12],[59,1,59,2],[59,3,59,5],[59,6,59,8],[59,9,59,12],[55,2,55,4],[55,6,55,8],[55,10,55,12],[56,2,56,4],[56,6,56,8],[56,10,56,12],[52,1,52,12],[53,1,53,4],[53,5,53,8],[53,9,53,12],[54,2,54,4],[54,6,54,8],[54,10,54,12],[50,1,50,3],[50,4,50,6],[50,7,50,9],[50,10,50,12],[51,1,51,3],[51,4,51,6],[51,7,51,9],[51,10,51,12],[44,1,44,12],[45,1,45,12],[46,1,46,12],[47,1,47,12],[48,1,48,12],[49,1,49,12],[38,2,38,12],[39,2,39,12],[40,2,40,12],[41,2,41,12],[42,2,42,12],[43,1,43,12],[32,1,32,12],[33,1,33,12],[34,1,34,12],[35,2,35,12],[36,2,36,12],[37,2,37,12],[30,1,31,2],[30,3,31,4],[30,5,31,6],[30,7,30,9],[30,10,30,12],[31,10,31,12],[28,1,28,6],[28,7,28,9],[28,10,28,12],[29,1,29,2],[29,3,29,4],[29,5,29,6],[29,7,29,9],[29,10,29,12],[24,1,25,5],[24,6,25,8],[24,9,25,12],[26,1,27,5],[26,6,27,8],[26,9,27,12],[20,1,20,12],[21,1,21,5],[21,6,21,8],[21,9,21,12],[22,1,23,5],[22,6,23,8],[22,9,23,12],[14,1,14,12],[15,1,16,5],[15,6,16,8],[15,9,16,10],[15,11,16,12],[17,1,19,5],[17,6,19,8],[17,11,19,12],[10,1,11,2],[10,3,10,4],[10,5,10,12],[11,3,11,4],[11,5,11,12],[12,1,13,2],[12,3,12,4],[12,5,12,12],[13,3,13,4],[13,5,13,12],[7,1,7,2],[7,3,7,8],[7,9,7,10],[7,11,7,12],[8,1,8,12],[9,1,9,2],[9,3,9,8],[9,9,9,10],[9,11,9,12],[4,1,4,12],[5,1,5,12],[6,1,6,2],[6,3,6,8],[6,9,6,10],[6,11,6,12],[1,1,3,2],[1,3,1,8],[1,9,1,10],[1,11,3,12],[2,3,2,8],[2,9,2,10],[3,3,3,8],[3,9,3,10]]}
[null,null,null,null,null,null,null,null,null,null,null,null," "]
[null,null,null,"HOJA DE VIDA DE INDICADOR",null,null,null,null,null,"Código:  GI-GUI-002-FR-004"]
[null,null,null,"Macroproceso: Direccionamiento Estratégico",null,null,null,null,null,"Versión: 03"]
[null,null,null,"Proceso: Gestión Integrada",null,null,null,null,null,"Fecha de Aprobación: 14/06/2019"]
[]
[null,"IDENTIFICACIÓN DEL INDICADOR"]
[null,"Nombre:",null,"Porcentaje de registros Reservas Presupuestales",null,null,null,null,null,"Código:",null,"GRF-227"]
[null,"Objetivo:",null,"Establecer la proporción de registros de las reservas constituídas en la vigencia anterior, que han sido pagadas o anuladas.",null,null,null,null,null,"Proceso asociado:",null,"Gestión de Recursos Financieros"]
[null,"ÁMBITO DEL INDICADOR"]
[null,"Tipo de Indicador:",null,null,null,null,null,null,null,"Nivel de Intervención:",null,"Economía"]
[null,"Alineación con el Plan Estratégico de Desarrollo 2018 - 2030:",null,"Lineamiento 5",null,"5.13 Estudiar, detectar, tratar y eliminar los riesgos de corrupción, motivando la participación de la comunidad universitaria y de la sociedad en la vigilancia de la gestión y la protección del patrimonio de la Universidad. ",null,null,null,null,null,null,null,null,{"$f":"IF(D11=\"Lineamiento 1\",\"UNO\",IF(D11=\"Lineamiento 2\",\"DOS\",IF(D11=\"Lineamiento 3\",\"TRES\",IF(D11=\"Lineamiento 4\",\"CUATRO\",IF(D11=\"Lineamiento 5\",\"CINCO\")))))","v":"CINCO"}]
[null,null,null,null,null,null,null,null,null,null,null,null,null,null,{"$f":"IF(D12=\"Lineamiento 1\",\"UNO\",IF(D12=\"Lineamiento 2\",\"DOS\",IF(D12=\"Lineamiento 3\",\"TRES\",IF(D12=\"Lineamiento 4\",\"CUATRO\",IF(D12=\"Lineamiento 5\",\"CINCO\")))))","v":false}]
[null,"Alineación Factor y Característica de Acreditación Institucional:",null,null,null,null,null,null,null,null,null,null,null,null,{"$f":"VLOOKUP(D13,[4]Información!$M$28:$N$39,2,FALSE)","v":{"$error":"#N/A"}}]
[null,null,null,null,null,null,null,null,null,null,null,null,null,null,{"$f":"VLOOKUP(D14,[4]Información!$M$28:$N$39,2,FALSE)","v":{"$error":"#N/A"}}]
[null," FORMA DE CÁLCULO"]
[null,"Fórmula",null,null,null,null,"Unidad de Medida",null,null,"Tendencia esperada del Indicador",null,"Meta o Valor Esperado"]
[]
[null,"(Número registros de pago y anulaciones de Reservas atendidos/ Número de solicitudes recibidas de registro de pagos y anulaciones de reservas)*100",null,null,null,null,"Porcentaje",null,null,"              Creciente",null,100]
[null,null,null,null,null,null,null,null,null,"              Decreciente"]
[null,null,null,null,null,null,null,null,null,"              Estático"]
[null," VARIABLES DEL INDICADOR"]
[null,"Nombre",null,null,null,null,"Unidad de Medida",null,null,"Fuente de Información "]
[null,"Número de registros atendidos de anulación o pago de reservas ",null,null,null,null,"Número",null,null,"Sección de Presupuesto, Sistema de Información Presupuestal UD y TIKE"]
[]
[null,"Número de registros recibidos de anulación o pago de reservas ",null,null,null,null,"Número",null,null,"Sección de Presupuesto, Sistema de Información Presupuestal UD y TIKE"]
[]
[]
[]
[null," RANGOS DE EVALUACIÓN",null,null,null,null,null,"PERIODICIDAD DE MEDICIÓN",null,null,"REPORTE DEL INDICADOR"]
[null,"Crítico",null,"En Riesgo",null,"Adecuado",null,"        Anual                              Trimestral",null,null,"         Líder del Proceso"]
[null,"0%-74%",null,"75%-89%",null,"90% - 100%",null,"        Semestral                        Mensual",null,null,"         Gestor del Proceso"]
[null,null,null,null,null,null,null,"        Cuatrimestral",null,null,"         Automático (sistema de información)"]
[null," INTERPRETACIÓN DE LOS RESULTADOS DEL INDICADOR (Cómo se lee el Indicador)"]
[null,"El resultado muestra cuál es la proporción de registros de pago y anulación de Reservas Presupuestales realizados."]
[null,"INSTRUCCIONES PARA EL CÁLCULO DE VARIABLES"]
[null,"Numerador:"]
[null,"1.","Al final del periodo, la Sección de Presupuesto, ingresa al Sistema de Información Presupuestal UD, identifica el número de solicitudes de anulación o pago de Reservas Presupuestales registrados"]
[null,"2."]
[null,"3."]
[null,"Denominador:"]
[null,"1.","Al final del periodo, la Sección de Presupuesto, ingresa al Sistema de Información Presupuestal UD, identifica el número de solicitudes de anulación o pago de Reservas Presupuestales recibidos"]
[null,"2."]
[null,"3."]
[null," DEFINICIÓN DE TÉRMINOS"]
[null,"Reservas Presupuestales: Son los compromisos legalmente constituidos que tienen Registro Presupuestal pero cuyo objetivo no fue cumplido dentro del año fiscal que termina y serán pagados dentro de la vigencia siguiente."]
[null,null,null,null,null,null,null,null,null,null,null,null,null,null,{"$f":"UPPER(B46)","v":""}]
[null,null,null,null,null,null,null,null,null,null,null,null,null,null,{"$f":"UPPER(B47)","v":""}]
[null,null,null,null,null,null,null,null,null,null,null,null,null,null,{"$f":"UPPER(B48)","v":""}]
[null,null,null,null,null,null,null,null,null,null,null,null,null,null,{"$f":"UPPER(B49)","v":""}]
[null," RESPONSABLES DE LA MEDICIÓN"]
[null,"Nivel:",null,null,"Consolidar y Reportar Datos",null,null,"Seguimiento y Análisis",null,null,"Toma de Decisiones"]
[null,"Cargo:",null,null,"Profesional de la Sección de Presupuesto",null,null,"Jefe de la Sección de Presupuesto",null,null,"Vicerrector Administrativo y Financiero, Rector"]
[null,"VERIFICACIÓN Y APROBACIÓN"]
[null,"Elaboró",null,null,null,"Revisó",null,null,null,"Aprobó"]
[null,"Nombre:","Equipo SIGUD.",null,null,"Nombre:","Franklin Wilches Reyes",null,null,"Nombre:","Eusebio Antonio Rangel Roa."]
[null,"Cargo:","N/A.",null,null,"Cargo:","Jefe Sección de Presupuesto",null,null,"Cargo:","Jefe División Recursos Financieros."]
[null,"Fecha:","2022-06-13",null,null,"Fecha:","2022-06-13",null,null,"Fecha:","2022-06-13"]
[]
[null,"Fecha",null,"Versión",null,null,"Cambios",null,null,"Justificación del Cambio"]
[null,"2017-12-12",null,1,null,null,"Creación documento",null,null,"Creación documento"]
[null,"2022-06-13",null,2,null,null,"Se ajusta el Nombre, Objetivo, Fórmula, Fuente de información e Instrucciones para el cálculo de cada Variable: Numerador y  Denominador",null,null,"Dar mas claridad frente a la información del documento."]

{"sheet":"GRF-228","index":4,"n_rows":76,"n_cols":13,"rows_kept":76,"cut":false,"hidden":false,"merged":[[28,1,29,5],[30,1,31,5],[28,6,29,8],[30,6,31,8],[40,1,40,12],[33,1,33,2],[33,4,33,5],[37,1,39,2],[37,3,39,4],[36,5,36,6],[34,1,34,2],[34,6,34,12],[36,7,36,8],[36,9,36,10],[28,9,29,12],[30,9,31,12],[36,11,36,12],[35,7,35,12],[34,4,34,5],[33,7,33,8],[33,10,33,11],[35,1,35,6],[36,1,36,2],[36,3,36,4],[8,9,8,10],[8,11,8,12],[9,3,9,12],[10,1,10,12],[20,1,20,12],[21,11,22,12],[21,6,22,7],[21,8,21,10],[14,1,14,2],[15,1,19,2],[1,1,3,2],[1,3,1,8],[1,9,1,10],[1,11,3,12],[2,3,2,8],[2,9,2,10],[3,3,3,8],[3,9,3,10],[4,1,4,12],[5,1,5,12],[7,1,7,12],[27,6,27,8],[27,1,27,5],[32,1,32,12],[26,1,26,12],[27,9,27,12],[21,1,22,5],[23,11,25,12],[23,1,25,5],[23,6,25,7],[23,8,25,8],[23,9,25,9],[23,10,25,10],[14,7,14,12],[15,7,19,12],[14,3,14,6],[15,3,19,6],[11,1,11,3],[11,7,11,9],[13,1,13,12],[8,1,8,2],[9,1,9,2],[8,3,8,8],[37,7,39,8],[37,9,39,10],[37,11,39,12],[45,5,45,7],[45,9,45,11],[44,5,44,7],[43,9,43,11],[44,9,44,11],[41,5,41,12],[37,5,39,6],[44,8,47,8],[42,5,42,7],[43,5,43,7],[42,9,42,11],[47,5,47,7],[48,1,48,12],[41,1,41,4],[49,1,51,12],[52,1,52,12],[53,2,53,12],[54,2,54,12],[42,1,47,3],[42,8,43,8],[46,9,47,11],[46,12,47,12],[46,5,46,7],[55,2,55,12],[56,2,56,12],[68,7,68,9],[68,10,68,12],[57,2,57,12],[58,2,58,12],[59,2,59,12],[60,2,60,12],[61,1,61,12],[62,1,65,12],[66,1,66,12],[67,1,67,3],[68,1,68,3],[69,1,69,12],[70,1,70,4],[70,5,70,8],[70,9,70,12],[67,4,67,6],[68,4,68,6],[67,7,67,9],[67,10,67,12],[75,6,75,8],[75,9,75,12],[71,2,71,4],[72,2,72,4],[73,2,73,4],[71,6,71,8],[72,6,72,8],[73,6,73,8],[76,9,78,12],[76,6,78,8],[76,3,78,5],[76,1,78,2],[71,10,71,12],[72,10,72,12],[73,10,73,12],[74,1,74,12],[75,1,75,2],[75,3,75,5]]}
[]
[null,null,null,"FORMATO: HOJA DE VIDA DEL INDICADOR",null,null,null,null,null,"Código:  GI-GUI-002-FR-004"]
[null,null,null,"Macroproceso: Direccionamiento Estratégico",null,null,null,null,null,"Versión: 03"]
[null,null,null,"Proceso: Gestión Integrada",null,null,null,null,null,"Fecha de Aprobación: 17/09/2014\n"]
[]
[null,"HOJA DE VIDA DEL INDICADOR"]
[]
[null,"DESCRIPCIÓN DEL INDICADOR"]
[null,"Nombre:",null,"Depuración de cuentas",null,null,null,null,null,"Código:",null,"GRF-228"]
[null,"Objetivo:",null,"Determinar el grado en que son depuradas las cuentas tanto de la vigencia actual como anteriores."]
[]
[null,"Fecha de Creación",null,null,12,12,2017,"Fecha de Actualización",null,null,12,12,2017]
[]
[null," DESCRIPCIÓN DEL PROCESO"]
[null,"PROCESO",null,"OBJETIVO DEL PROCESO",null,null,null,"ALINEADO AL PLAN ESTRATÉGICO DE DESARROLLO"]
[null,"Gestión de Recursos Financieros",null,"Administrar, gestionar, registrar y controlar los recursos financieros en la Universidad Distrital Francisco José Caldas, cumpliendo con el marco, constitucional,  legal y normativo vigente; garantizando la transparencia y sostenibilidad financiera de acuerdo a los lineamientos establecidos en el contexto estratégico y misional de la institución.",null,null,null,"Lineamiento Estratégico 4. Garantizar, gestionar y proveer las condiciones institucionales, para el cumplimiento de las funciones universitarias y el bienestar de la comunidad.\n\nEstrategia 4.6 Participación efectiva, sostenible y transparente en la gestión administrativa y financiera."]
[]
[]
[]
[]
[null," FORMA DE CÁLCULO"]
[null,"FÓRMULA",null,null,null,null,"Unidad de Medida",null,"Tendencia esperada del Indicador",null,null,"Meta o Valor Esperado"]
[null,null,null,null,null,null,null,null,"Creciente","Decreciente","Estático"]
[null,"(Partidas depuradas / Partidas identificadas a depurar)*100",null,null,null,null,"Porcentaje",null,"X",null,null,1]
[]
[]
[null," VARIABLES DEL INDICADOR"]
[null,"NOMBRE",null,null,null,null,"UNIDAD DE MEDIDA",null,null,"FUENTE DE INFORMACIÓN"]
[null,"Partidas depuradas",null,null,null,null,"Número",null,null,"Sección de Contabilidad, Sistema de Información SIIGO"]
[]
[null,"Partidas identificadas a depurar",null,null,null,null,"Número",null,null,"Sección de Contabilidad, Sistema de Información SIIGO"]
[]
[null," PERIODICIDAD DE LA MEDICIÓN DEL INDICADOR"]
[null,"Mensual",null,null,"Trimestral",null,"X","Semestral",null,null,"Anual"]
[null,"Otro",null,null,"Cuál?"]
[null," RANGOS DE EVALUACIÓN",null,null,null,null,null,"QUIÉN REPORTA EL INDICADOR AL TABLERO"]
[null,"Crítico",null,"En Riesgo",null,"Adecuado",null,"Líder del Proceso",null,"Gestor del Proceso",null,"Equipo SIGUD"]
[null,"0%-74%",null,"75%-89%",null,"90% - 100%",null,null,null,"X"]
[]
[]
[null," TIPO DE INDICADOR"]
[null,"Nivel de Medición",null,null,null,"Dimensión de Evaluación"]
[null,"Intervención ",null,null,null,"Impacto",null,null,"Jerarquía","Estratégicos "]
[null,null,null,null,"X","Resultados ",null,null,null,"Gestión",null,null,"X"]
[null,null,null,null,null,"Producto",null,null,"Calidad","Eficacia",null,null,"X"]
[null,null,null,null,null,"Proceso",null,null,null,"Eficiencia"]
[null,null,null,null,null,"Insumo",null,null,null,"Efectividad"]
[null,null,null,null,null,"Economía "]
[null," INTERPRETACIÓN DE LOS RESULTADOS DEL INDICADOR (Cómo se lee el Indicador)"]
[null,"El resultado muestra el porcentaje de partidas de depuradas del total identificadas."]
[]
[]
[null,"Instrucciones para el cálculo de cada Variable"]
[null,"Numerador:"]
[null,"1.","Al final del periodo, la Sección de Contabilidad, mediante el Sistema de Información SIIGO, calcula el número de Partidas depuradas."]
[null,"2."]
[null,"3."]
[null,"Denominador:"]
[null,"1.","Al final del periodo, la Sección de Contabilidad, mediante el Sistema de Información SIIGO, calcula el número de Partidas identificadas a depurar."]
[null,"2."]
[null,"3."]
[null," Definición de Términos"]
[null,"SIIGO: Sistema Integrado de Información Gerencial Operativo."]
[]
[]
[]
[null," Responsables de la Medición"]
[null,"Nivel:",null,null,"Consolidar y Reportar Datos",null,null,"Seguimiento y Análisis",null,null,"Toma de Decisiones"]
[null,"Cargo:",null,null,"Profesional de la Sección de Contabilidad",null,null,"Jefe de la Sección de Contabilidad",null,null,"Vicerrector Administrativo y Financiero, Rector"]
[null,"VERIFICACIÓN Y APROBACIÓN"]
[null,"ELABORÓ",null,null,null,"REVISÓ",null,null,null,"APROBÓ"]
[null,"Nombre:","Equipo SIGUD.",null,null,"Nombre:","Eusebio Antonio Rangel Roa.",null,null,"Nombre:","Eusebio Antonio Rangel Roa."]
[null,"Cargo:","N/A.",null,null,"Cargo:","Jefe División Recursos Financieros.",null,null,"Cargo:","Jefe División Recursos Financieros."]
[null,"Fecha:","12 de diciembre de 2017.",null,null,"Fecha:","12 de diciembre de 2017.",null,null,"Fecha:","12 de diciembre de 2017."]
[]
[null,"FECHA",null,"VERSIÓN",null,null,"CAMBIO",null,null,"MOTIVO"]

{"sheet":"GRF-229","index":5,"n_rows":76,"n_cols":13,"rows_kept":76,"cut":false,"hidden":false,"merged":[[28,1,29,5],[30,1,31,5],[28,6,29,8],[30,6,31,8],[40,1,40,12],[33,1,33,2],[33,4,33,5],[37,1,39,2],[37,3,39,4],[36,5,36,6],[34,1,34,2],[34,6,34,12],[36,7,36,8],[36,9,36,10],[28,9,29,12],[30,9,31,12],[36,11,36,12],[35,7,35,12],[34,4,34,5],[33,7,33,8],[33,10,33,11],[35,1,35,6],[36,1,36,2],[36,3,36,4],[8,9,8,10],[8,11,8,12],[9,3,9,12],[10,1,10,12],[20,1,20,12],[21,11,22,12],[21,6,22,7],[21,8,21,10],[14,1,14,2],[15,1,19,2],[1,1,3,2],[1,3,1,8],[1,9,1,10],[1,11,3,12],[2,3,2,8],[2,9,2,10],[3,3,3,8],[3,9,3,10],[4,1,4,12],[5,1,5,12],[7,1,7,12],[27,6,27,8],[27,1,27,5],[32,1,32,12],[26,1,26,12],[27,9,27,12],[21,1,22,5],[23,11,25,12],[23,1,25,5],[23,6,25,7],[23,8,25,8],[23,9,25,9],[23,10,25,10],[14,7,14,12],[15,7,19,12],[14,3,14,6],[15,3,19,6],[11,1,11,3],[11,7,11,9],[13,1,13,12],[8,1,8,2],[9,1,9,2],[8,3,8,8],[37,7,39,8],[37,9,39,10],[37,11,39,12],[45,5,45,7],[45,9,45,11],[44,5,44,7],[43,9,43,11],[44,9,44,11],[41,5,41,12],[37,5,39,6],[44,8,47,8],[42,5,42,7],[43,5,43,7],[42,9,42,11],[47,5,47,7],[48,1,48,12],[41,1,41,4],[49,1,51,12],[52,1,52,12],[53,2,53,12],[54,2,54,12],[42,1,47,3],[42,8,43,8],[46,9,47,11],[46,12,47,12],[46,5,46,7],[55,2,55,12],[56,2,56,12],[68,7,68,9],[68,10,68,12],[57,2,57,12],[58,2,58,12],[59,2,59,12],[60,2,60,12],[61,1,61,12],[62,1,65,12],[66,1,66,12],[67,1,67,3],[68,1,68,3],[69,1,69,12],[70,1,70,4],[70,5,70,8],[70,9,70,12],[67,4,67,6],[68,4,68,6],[67,7,67,9],[67,10,67,12],[75,6,75,8],[75,9,75,12],[71,2,71,4],[72,2,72,4],[73,2,73,4],[71,6,71,8],[72,6,72,8],[73,6,73,8],[76,9,78,12],[76,6,78,8],[76,3,78,5],[76,1,78,2],[71,10,71,12],[72,10,72,12],[73,10,73,12],[74,1,74,12],[75,1,75,2],[75,3,75,5]]}
[]
[null,null,null,"FORMATO: HOJA DE VIDA DEL INDICADOR",null,null,null,null,null,"Código:  GI-GUI-002-FR-004"]
[null,null,null,"Macroproceso: Direccionamiento Estratégico",null,null,null,null,null,"Versión: 03"]
[null,null,null,"Proceso: Gestión Integrada",null,null,null,null,null,"Fecha de Aprobación: 17/09/2014\n"]
[]
[null,"HOJA DE VIDA DEL INDICADOR"]
[]
[null,"DESCRIPCIÓN DEL INDICADOR"]
[null,"Nombre:",null,"Eficiencia en pagos",null,null,null,null,null,"Código:",null,"GRF-229"]
[null,"Objetivo:",null,"Determinar la proporción de los pagos cancelados en relación a los recibidos durante el periodo."]
[]
[null,"Fecha de Creación",null,null,12,12,2017,"Fecha de Actualización",null,null,12,12,2017]
[]
[null," DESCRIPCIÓN DEL PROCESO"]
[null,"PROCESO",null,"OBJETIVO DEL PROCESO",null,null,null,"ALINEADO AL PLAN ESTRATÉGICO DE DESARROLLO"]
[null,"Gestión de Recursos Financieros",null,"Administrar, gestionar, registrar y controlar los recursos financieros en la Universidad Distrital Francisco José Caldas, cumpliendo con el marco, constitucional,  legal y normativo vigente; garantizando la transparencia y sostenibilidad financiera de acuerdo a los lineamientos establecidos en el contexto estratégico y misional de la institución.",null,null,null,"Lineamiento Estratégico 4. Garantizar, gestionar y proveer las condiciones institucionales, para el cumplimiento de las funciones universitarias y el bienestar de la comunidad.\n\nEstrategia 4.6 Participación efectiva, sostenible y transparente en la gestión administrativa y financiera."]
[]
[]
[]
[]
[null," FORMA DE CÁLCULO"]
[null,"FÓRMULA",null,null,null,null,"Unidad de Medida",null,"Tendencia esperada del Indicador",null,null,"Meta o Valor Esperado"]
[null,null,null,null,null,null,null,null,"Creciente","Decreciente","Estático"]
[null,"(Número de obligaciones canceladas / Número de obligaciones recibidas)*100",null,null,null,null,"Porcentaje",null,"X",null,null,1]
[]
[]
[null," VARIABLES DEL INDICADOR"]
[null,"NOMBRE",null,null,null,null,"UNIDAD DE MEDIDA",null,null,"FUENTE DE INFORMACIÓN"]
[null,"Número de obligaciones canceladas",null,null,null,null,"Número",null,null,"Tesorería General"]
[]
[null,"Número de obligaciones recibidas",null,null,null,null,"Número",null,null,"Tesorería General"]
[]
[null," PERIODICIDAD DE LA MEDICIÓN DEL INDICADOR"]
[null,"Mensual",null,"X","Trimestral",null,null,"Semestral",null,null,"Anual"]
[null,"Otro",null,null,"Cuál?"]
[null," RANGOS DE EVALUACIÓN",null,null,null,null,null,"QUIÉN REPORTA EL INDICADOR AL TABLERO"]
[null,"Crítico",null,"En Riesgo",null,"Adecuado",null,"Líder del Proceso",null,"Gestor del Proceso",null,"Equipo SIGUD"]
[null,"0%-84%",null,"85%-94%",null,"95% - 100%",null,null,null,"X"]
[]
[]
[null," TIPO DE INDICADOR"]
[null,"Nivel de Medición",null,null,null,"Dimensión de Evaluación"]
[null,"Intervención ",null,null,null,"Impacto",null,null,"Jerarquía","Estratégicos "]
[null,null,null,null,"X","Resultados ",null,null,null,"Gestión",null,null,"X"]
[null,null,null,null,null,"Producto",null,null,"Calidad","Eficacia"]
[null,null,null,null,null,"Proceso",null,null,null,"Eficiencia",null,null,"X"]
[null,null,null,null,null,"Insumo",null,null,null,"Efectividad"]
[null,null,null,null,null,"Economía "]
[null," INTERPRETACIÓN DE LOS RESULTADOS DEL INDICADOR (Cómo se lee el Indicador)"]
[null,"El resultado muestra cuál es la eficiencia en el pago de las obligaciones asumidas por la Universidad."]
[]
[]
[null,"Instrucciones para el cálculo de cada Variable"]
[null,"Numerador:"]
[null,"1.","Al final del periodo, la Tesorería General calcula el número de órdenes de pago que se pagaron."]
[null,"2."]
[null,"3."]
[null,"Denominador:"]
[null,"1.","Al final del periodo, la Tesorería General calcula el número de órdenes de pago que se recibieron."]
[null,"2."]
[null,"3."]
[null," Definición de Términos"]
[null,"Orden de pago: Mandato expreso que una persona física o jurídica (ordenante), hace a su entidad bancaria (banco emisor), para que directamente o a través de otra entidad ponga a disposición de un tercero, (beneficiario), una determinada cantidad dinero."]
[]
[]
[]
[null," Responsables de la Medición"]
[null,"Nivel:",null,null,"Consolidar y Reportar Datos",null,null,"Seguimiento y Análisis",null,null,"Toma de Decisiones"]
[null,"Cargo:",null,null,"Profesional de la Tesorería General",null,null,"Tesorero(a) General",null,null,"Vicerrector Administrativo y Financiero, Rector"]
[null,"VERIFICACIÓN Y APROBACIÓN"]
[null,"ELABORÓ",null,null,null,"REVISÓ",null,null,null,"APROBÓ"]
[null,"Nombre:","Equipo SIGUD.",null,null,"Nombre:","Eusebio Antonio Rangel Roa.",null,null,"Nombre:","Eusebio Antonio Rangel Roa."]
[null,"Cargo:","N/A.",null,null,"Cargo:","Jefe División Recursos Financieros.",null,null,"Cargo:","Jefe División Recursos Financieros."]
[null,"Fecha:","12 de diciembre de 2017.",null,null,"Fecha:","12 de diciembre de 2017.",null,null,"Fecha:","12 de diciembre de 2017."]
[]
[null,"FECHA",null,"VERSIÓN",null,null,"CAMBIO",null,null,"MOTIVO"]

{"sheet":"GRF-230","index":6,"n_rows":76,"n_cols":13,"rows_kept":76,"cut":false,"hidden":false,"merged":[[28,1,29,5],[30,1,31,5],[28,6,29,8],[30,6,31,8],[40,1,40,12],[33,1,33,2],[33,4,33,5],[37,1,39,2],[37,3,39,4],[36,5,36,6],[34,1,34,2],[34,6,34,12],[36,7,36,8],[36,9,36,10],[28,9,29,12],[30,9,31,12],[36,11,36,12],[35,7,35,12],[34,4,34,5],[33,7,33,8],[33,10,33,11],[35,1,35,6],[36,1,36,2],[36,3,36,4],[8,9,8,10],[8,11,8,12],[9,3,9,12],[10,1,10,12],[20,1,20,12],[21,11,22,12],[21,6,22,7],[21,8,21,10],[14,1,14,2],[15,1,19,2],[1,1,3,2],[1,3,1,8],[1,9,1,10],[1,11,3,12],[2,3,2,8],[2,9,2,10],[3,3,3,8],[3,9,3,10],[4,1,4,12],[5,1,5,12],[7,1,7,12],[27,6,27,8],[27,1,27,5],[32,1,32,12],[26,1,26,12],[27,9,27,12],[21,1,22,5],[23,11,25,12],[23,1,25,5],[23,6,25,7],[23,8,25,8],[23,9,25,9],[23,10,25,10],[14,7,14,12],[15,7,19,12],[14,3,14,6],[15,3,19,6],[11,1,11,3],[11,7,11,9],[13,1,13,12],[8,1,8,2],[9,1,9,2],[8,3,8,8],[37,7,39,8],[37,9,39,10],[37,11,39,12],[45,5,45,7],[45,9,45,11],[44,5,44,7],[43,9,43,11],[44,9,44,11],[41,5,41,12],[37,5,39,6],[44,8,47,8],[42,5,42,7],[43,5,43,7],[42,9,42,11],[47,5,47,7],[48,1,48,12],[41,1,41,4],[49,1,51,12],[52,1,52,12],[53,2,53,12],[54,2,54,12],[42,1,47,3],[42,8,43,8],[46,9,47,11],[46,12,47,12],[46,5,46,7],[55,2,55,12],[56,2,56,12],[68,7,68,9],[68,10,68,12],[57,2,57,12],[58,2,58,12],[59,2,59,12],[60,2,60,12],[61,1,61,12],[62,1,65,12],[66,1,66,12],[67,1,67,3],[68,1,68,3],[69,1,69,12],[70,1,70,4],[70,5,70,8],[70,9,70,12],[67,4,67,6],[68,4,68,6],[67,7,67,9],[67,10,67,12],[75,6,75,8],[75,9,75,12],[71,2,71,4],[72,2,72,4],[73,2,73,4],[71,6,71,8],[72,6,72,8],[73,6,73,8],[76,9,78,12],[76,6,78,8],[76,3,78,5],[76,1,78,2],[71,10,71,12],[72,10,72,12],[73,10,73,12],[74,1,74,12],[75,1,75,2],[75,3,75,5]]}
[]
[null,null,null,"FORMATO: HOJA DE VIDA DEL INDICADOR",null,null,null,null,null,"Código:  GI-GUI-002-FR-004"]
[null,null,null,"Macroproceso: Direccionamiento Estratégico",null,null,null,null,null,"Versión: 03"]
[null,null,null,"Proceso: Gestión Integrada",null,null,null,null,null,"Fecha de Aprobación: 17/09/2014\n"]
[]
[null,"HOJA DE VIDA DEL INDICADOR"]
[]
[null,"DESCRIPCIÓN DEL INDICADOR"]
[null,"Nombre:",null,"Informes contables",null,null,null,null,null,"Código:",null,"GRF-230"]
[null,"Objetivo:",null,"Verificar el grado con que son presentados los informes contables oportunamente antes los entes de control."]
[]
[null,"Fecha de Creación",null,null,12,12,2017,"Fecha de Actualización",null,null,12,12,2017]
[]
[null," DESCRIPCIÓN DEL PROCESO"]
[null,"PROCESO",null,"OBJETIVO DEL PROCESO",null,null,null,"ALINEADO AL PLAN ESTRATÉGICO DE DESARROLLO"]
[null,"Gestión de Recursos Financieros",null,"Administrar, gestionar, registrar y controlar los recursos financieros en la Universidad Distrital Francisco José Caldas, cumpliendo con el marco, constitucional,  legal y normativo vigente; garantizando la transparencia y sostenibilidad financiera de acuerdo a los lineamientos establecidos en el contexto estratégico y misional de la institución.",null,null,null,"Lineamiento Estratégico 4. Garantizar, gestionar y proveer las condiciones institucionales, para el cumplimiento de las funciones universitarias y el bienestar de la comunidad.\n\nEstrategia 4.6 Participación efectiva, sostenible y transparente en la gestión administrativa y financiera."]
[]
[]
[]
[]
[null," FORMA DE CÁLCULO"]
[null,"FÓRMULA",null,null,null,null,"Unidad de Medida",null,"Tendencia esperada del Indicador",null,null,"Meta o Valor Esperado"]
[null,null,null,null,null,null,null,null,"Creciente","Decreciente","Estático"]
[null,"(Número de informes elaborados y presentados oportunamente / Número de informes requeridos )*100",null,null,null,null,"Porcentaje",null,"X",null,null,1]
[]
[]
[null," VARIABLES DEL INDICADOR"]
[null,"NOMBRE",null,null,null,null,"UNIDAD DE MEDIDA",null,null,"FUENTE DE INFORMACIÓN"]
[null,"Número de informes elaborados y presentados oportunamente",null,null,null,null,"Número",null,null,"Sección de Contabilidad, Sistema de Información SIIGO"]
[]
[null,"Número de informes requeridos",null,null,null,null,"Número",null,null,"Sección de Contabilidad, Reportes CGN, SHD, MEN y Contraloría "]
[]
[null," PERIODICIDAD DE LA MEDICIÓN DEL INDICADOR"]
[null,"Mensual",null,null,"Trimestral",null,"X","Semestral",null,null,"Anual"]
[null,"Otro",null,null,"Cuál?"]
[null," RANGOS DE EVALUACIÓN",null,null,null,null,null,"QUIÉN REPORTA EL INDICADOR AL TABLERO"]
[null,"Crítico",null,"En Riesgo",null,"Adecuado",null,"Líder del Proceso",null,"Gestor del Proceso",null,"Equipo SIGUD"]
[null,"0%-89%",null,"90%-94%",null,"95% - 100%",null,null,null,"X"]
[]
[]
[null," TIPO DE INDICADOR"]
[null,"Nivel de Medición",null,null,null,"Dimensión de Evaluación"]
[null,"Intervención ",null,null,null,"Impacto",null,null,"Jerarquía","Estratégicos "]
[null,null,null,null,null,"Resultados ",null,null,null,"Gestión",null,null,"X"]
[null,null,null,null,"X","Producto",null,null,"Calidad","Eficacia"]
[null,null,null,null,null,"Proceso",null,null,null,"Eficiencia",null,null,"X"]
[null,null,null,null,null,"Insumo",null,null,null,"Efectividad"]
[null,null,null,null,null,"Economía "]
[null," INTERPRETACIÓN DE LOS RESULTADOS DEL INDICADOR (Cómo se lee el Indicador)"]
[null,"El resultado muestra el porcentaje de los informes contables requeridos por los diferentes entes de control que se han elaborado y presentado oportunamente."]
[]
[]
[null,"Instrucciones para el cálculo de cada Variable"]
[null,"Numerador:"]
[null,"1.","Al final del periodo, al Sección de Contabilidad, calcula el número de informes elaborados y presentados oportunamente."]
[null,"2."]
[null,"3."]
[null,"Denominador:"]
[null,"1.","Al final del periodo, al Sección de Contabilidad, de acuerdo a los reportes requeridos por la CGN, SHD, MEN y Contraloría, calcula el número de informes requeridos."]
[null,"2."]
[null,"3."]
[null," Definición de Términos"]
[null,"SIIGO: Sistema Integrado de Información Gerencial Operativo \nCGN: Contaduría General de la Nación.                                                                                                                                                                                                                                                                   SHD: Secretaria de Hacienda Distrital.                                                                                                                                                                                                                                                              MEN: Ministerio de Educación Nacional."]
[]
[]
[]
[null," Responsables de la Medición"]
[null,"Nivel:",null,null,"Consolidar y Reportar Datos",null,null,"Seguimiento y Análisis",null,null,"Toma de Decisiones"]
[null,"Cargo:",null,null,"Profesional de la Sección de Contabilidad",null,null,"Jefe de la Sección de Contabilidad",null,null,"Vicerrector Administrativo y Financiero, Rector"]
[null,"VERIFICACIÓN Y APROBACIÓN"]
[null,"ELABORÓ",null,null,null,"REVISÓ",null,null,null,"APROBÓ"]
[null,"Nombre:","Equipo SIGUD.",null,null,"Nombre:","Eusebio Antonio Rangel Roa.",null,null,"Nombre:","Eusebio Antonio Rangel Roa."]
[null,"Cargo:","N/A.",null,null,"Cargo:","Jefe División Recursos Financieros.",null,null,"Cargo:","Jefe División Recursos Financieros."]
[null,"Fecha:","12 de diciembre de 2017.",null,null,"Fecha:","12 de diciembre de 2017.",null,null,"Fecha:","12 de diciembre de 2017."]
[]
[null,"FECHA",null,"VERSIÓN",null,null,"CAMBIO",null,null,"MOTIVO"]

{"sheet":"GRF-231","index":7,"n_rows":76,"n_cols":13,"rows_kept":76,"cut":false,"hidden":false,"merged":[[76,9,78,12],[76,6,78,8],[76,3,78,5],[76,1,78,2],[71,10,71,12],[72,10,72,12],[73,10,73,12],[74,1,74,12],[75,1,75,2],[75,3,75,5],[69,1,69,12],[70,1,70,4],[70,5,70,8],[70,9,70,12],[67,4,67,6],[68,4,68,6],[67,7,67,9],[67,10,67,12],[75,6,75,8],[75,9,75,12],[71,2,71,4],[72,2,72,4],[73,2,73,4],[71,6,71,8],[72,6,72,8],[73,6,73,8],[55,2,55,12],[56,2,56,12],[68,7,68,9],[68,10,68,12],[57,2,57,12],[58,2,58,12],[59,2,59,12],[60,2,60,12],[61,1,61,12],[62,1,65,12],[66,1,66,12],[67,1,67,3],[68,1,68,3],[48,1,48,12],[41,1,41,4],[49,1,51,12],[52,1,52,12],[53,2,53,12],[54,2,54,12],[42,1,47,3],[42,8,43,8],[46,9,47,11],[46,12,47,12],[46,5,46,7],[27,6,27,8],[27,1,27,5],[32,1,32,12],[26,1,26,12],[27,9,27,12],[21,1,22,5],[23,11,25,12],[23,1,25,5],[37,7,39,8],[37,9,39,10],[37,11,39,12],[37,5,39,6],[28,9,29,12],[30,9,31,12],[36,11,36,12],[35,7,35,12],[34,4,34,5],[28,1,29,5],[30,1,31,5],[28,6,29,8],[30,6,31,8],[36,7,36,8],[36,9,36,10],[1,1,3,2],[1,3,1,8],[1,9,1,10],[1,11,3,12],[2,3,2,8],[2,9,2,10],[3,3,3,8],[3,9,3,10],[23,6,25,7],[23,8,25,8],[23,9,25,9],[23,10,25,10],[14,7,14,12],[15,7,19,12],[14,3,14,6],[15,3,19,6],[5,1,5,12],[7,1,7,12],[10,1,10,12],[20,1,20,12],[21,11,22,12],[21,6,22,7],[21,8,21,10],[14,1,14,2],[15,1,19,2],[4,1,4,12],[11,1,11,3],[11,7,11,9],[13,1,13,12],[8,1,8,2],[9,1,9,2],[8,3,8,8],[8,9,8,10],[8,11,8,12],[9,3,9,12],[40,1,40,12],[33,1,33,2],[33,4,33,5],[37,1,39,2],[37,3,39,4],[45,5,45,7],[45,9,45,11],[44,5,44,7],[43,9,43,11],[44,9,44,11],[41,5,41,12],[44,8,47,8],[42,5,42,7],[43,5,43,7],[42,9,42,11],[47,5,47,7],[33,7,33,8],[33,10,33,11],[35,1,35,6],[36,1,36,2],[36,3,36,4],[36,5,36,6],[34,1,34,2],[34,6,34,12]]}
[]
[null,null,null,"FORMATO: HOJA DE VIDA DEL INDICADOR",null,null,null,null,null,"Código:  GI-GUI-002-FR-004"]
[null,null,null,"Macroproceso: Direccionamiento Estratégico",null,null,null,null,null,"Versión: 03"]
[null,null,null,"Proceso: Gestión Integrada",null,null,null,null,null,"Fecha de Aprobación: 17/09/2014\n"]
[]
[null,"HOJA DE VIDA DEL INDICADOR"]
[]
[null,"DESCRIPCIÓN DEL INDICADOR"]
[null,"Nombre:",null,"Legalización de avances",null,null,null,null,null,"Código:",null,"GRF-231"]
[null,"Objetivo:",null,"Determinar el grado con el que son legalizados oportunamente los avances girados a los funcionarios y docentes de la Universidad."]
[]
[null,"Fecha de Creación",null,null,12,12,2017,"Fecha de Actualización",null,null,12,12,2017]
[]
[null," DESCRIPCIÓN DEL PROCESO"]
[null,"PROCESO",null,"OBJETIVO DEL PROCESO",null,null,null,"ALINEADO AL PLAN ESTRATÉGICO DE DESARROLLO"]
[null,"Gestión de Recursos Financieros",null,"Administrar, gestionar, registrar y controlar los recursos financieros en la Universidad Distrital Francisco José Caldas, cumpliendo con el marco, constitucional,  legal y normativo vigente; garantizando la transparencia y sostenibilidad financiera de acuerdo a los lineamientos establecidos en el contexto estratégico y misional de la institución.",null,null,null,"Lineamiento Estratégico 4. Garantizar, gestionar y proveer las condiciones institucionales, para el cumplimiento de las funciones universitarias y el bienestar de la comunidad.\n\nEstrategia 4.6 Participación efectiva, sostenible y transparente en la gestión administrativa y financiera."]
[]
[]
[]
[]
[null," FORMA DE CÁLCULO"]
[null,"FÓRMULA",null,null,null,null,"Unidad de Medida",null,"Tendencia esperada del Indicador",null,null,"Meta o Valor Esperado"]
[null,null,null,null,null,null,null,null,"Creciente","Decreciente","Estático"]
[null,"(Valor de los avances legalizados / Valor de los avances girados)*100",null,null,null,null,"Porcentaje",null,"X",null,null,1]
[]
[]
[null," VARIABLES DEL INDICADOR"]
[null,"NOMBRE",null,null,null,null,"UNIDAD DE MEDIDA",null,null,"FUENTE DE INFORMACIÓN"]
[null,"Valor de los avances legalizados",null,null,null,null,"Número",null,null,"Tesorería General, Sistema de Información, SIIGO"]
[]
[null,"Valor de los avances girados",null,null,null,null,"Número",null,null,"Tesorería General, Sistema de Información, SIIGO"]
[]
[null," PERIODICIDAD DE LA MEDICIÓN DEL INDICADOR"]
[null,"Mensual",null,"X","Trimestral",null,null,"Semestral",null,null,"Anual"]
[null,"Otro",null,null,"Cuál?"]
[null," RANGOS DE EVALUACIÓN",null,null,null,null,null,"QUIÉN REPORTA EL INDICADOR AL TABLERO"]
[null,"Crítico",null,"En Riesgo",null,"Adecuado",null,"Líder del Proceso",null,"Gestor del Proceso",null,"Equipo SIGUD"]
[null,"0%-84%",null,"85%-89%",null,"90% - 100%",null,null,null,"X"]
[]
[]
[null," TIPO DE INDICADOR"]
[null,"Nivel de Medición",null,null,null,"Dimensión de Evaluación"]
[null,"Intervención ",null,null,null,"Impacto",null,null,"Jerarquía","Estratégicos "]
[null,null,null,null,null,"Resultados ",null,null,null,"Gestión",null,null,"X"]
[null,null,null,null,null,"Producto",null,null,"Calidad","Eficacia",null,null,"X"]
[null,null,null,null,null,"Proceso",null,null,null,"Eficiencia"]
[null,null,null,null,null,"Insumo",null,null,null,"Efectividad"]
[null,null,null,null,"X","Economía "]
[null," INTERPRETACIÓN DE LOS RESULTADOS DEL INDICADOR (Cómo se lee el Indicador)"]
[null,"El resultado es el porcentaje del total de avances girados que han sido legalizados."]
[]
[]
[null,"Instrucciones para el cálculo de cada Variable"]
[null,"Numerador:"]
[null,"1.","Al final del periodo, la Tesorería General, mediante el Sistema de Información SIIGO, calcula el valor de los avances legalizados."]
[null,"2."]
[null,"3."]
[null,"Denominador:"]
[null,"1.","Al final del periodo, la Tesorería General, mediante el Sistema de Información SIIGO, calcula el valor total de los avances girados."]
[null,"2."]
[null,"3."]
[null," Definición de Términos"]
[null,"SIIGO: Sistema Integrado de Información Gerencial Operativo."]
[]
[]
[]
[null," Responsables de la Medición"]
[null,"Nivel:",null,null,"Consolidar y Reportar Datos",null,null,"Seguimiento y Análisis",null,null,"Toma de Decisiones"]
[null,"Cargo:",null,null,"Profesional de la Tesorería General",null,null,"Tesorero(a) General",null,null,"Vicerrector Administrativo y Financiero, Rector"]
[null,"VERIFICACIÓN Y APROBACIÓN"]
[null,"ELABORÓ",null,null,null,"REVISÓ",null,null,null,"APROBÓ"]
[null,"Nombre:","Equipo SIGUD.",null,null,"Nombre:","Eusebio Antonio Rangel Roa.",null,null,"Nombre:","Eusebio Antonio Rangel Roa."]
[null,"Cargo:","N/A.",null,null,"Cargo:","Jefe División Recursos Financieros.",null,null,"Cargo:","Jefe División Recursos Financieros."]
[null,"Fecha:","12 de diciembre de 2017.",null,null,"Fecha:","12 de diciembre de 2017.",null,null,"Fecha:","12 de diciembre de 2017."]
[]
[null,"FECHA",null,"VERSIÓN",null,null,"CAMBIO",null,null,"MOTIVO"]

{"sheet":"GRF-232","index":8,"n_rows":61,"n_cols":15,"rows_kept":61,"cut":false,"hidden":false,"merged":[[60,1,60,2],[60,3,60,5],[60,6,60,8],[60,9,60,12],[57,1,57,12],[58,1,58,2],[58,3,58,5],[58,6,58,8],[58,9,58,12],[59,1,59,2],[59,3,59,5],[59,6,59,8],[59,9,59,12],[55,2,55,4],[55,6,55,8],[55,10,55,12],[56,2,56,4],[56,6,56,8],[56,10,56,12],[52,1,52,12],[53,1,53,4],[53,5,53,8],[53,9,53,12],[54,2,54,4],[54,6,54,8],[54,10,54,12],[50,1,50,3],[50,4,50,6],[50,7,50,9],[50,10,50,12],[51,1,51,3],[51,4,51,6],[51,7,51,9],[51,10,51,12],[44,1,44,12],[45,1,45,12],[46,1,46,12],[47,1,47,12],[48,1,48,12],[49,1,49,12],[38,2,38,12],[39,2,39,12],[40,2,40,12],[41,2,41,12],[42,2,42,12],[43,1,43,12],[32,1,32,12],[33,1,33,12],[34,1,34,12],[35,2,35,12],[36,2,36,12],[37,2,37,12],[30,1,31,2],[30,3,31,4],[30,5,31,6],[30,7,30,9],[30,10,30,12],[31,10,31,12],[28,1,28,6],[28,7,28,9],[28,10,28,12],[29,1,29,2],[29,3,29,4],[29,5,29,6],[29,7,29,9],[29,10,29,12],[24,1,25,5],[24,6,25,8],[24,9,25,12],[26,1,27,5],[26,6,27,8],[26,9,27,12],[20,1,20,12],[21,1,21,5],[21,6,21,8],[21,9,21,12],[22,1,23,5],[22,6,23,8],[22,9,23,12],[14,1,14,12],[15,1,16,5],[15,6,16,8],[15,9,16,10],[15,11,16,12],[17,1,19,5],[17,6,19,8],[17,11,19,12],[10,1,11,2],[10,3,10,4],[10,5,10,12],[11,3,11,4],[11,5,11,12],[12,1,13,2],[12,3,12,4],[12,5,12,12],[13,3,13,4],[13,5,13,12],[7,1,7,2],[7,3,7,8],[7,9,7,10],[7,11,7,12],[8,1,8,12],[9,1,9,2],[9,3,9,8],[9,9,9,10],[9,11,9,12],[4,1,4,12],[5,1,5,12],[6,1,6,2],[6,3,6,8],[6,9,6,10],[6,11,6,12],[1,1,3,2],[1,3,1,8],[1,9,1,10],[1,11,3,12],[2,3,2,8],[2,9,2,10],[3,3,3,8],[3,9,3,10]]}
[null,null,null,null,null,null,null,null,null,null,null,null," "]
[null,null,null,"HOJA DE VIDA DE INDICADOR",null,null,null,null,null,"Código:  GI-GUI-002-FR-004"]
[null,null,null,"Macroproceso: Direccionamiento Estratégico",null,null,null,null,null,"Versión: 03"]
[null,null,null,"Proceso: Gestión Integrada",null,null,null,null,null,"Fecha de Aprobación: 14/06/2019"]
[]
[null,"IDENTIFICACIÓN DEL INDICADOR"]
[null,"Nombre:",null,"Expedición Certificados de Disponibilidad Presupuestal",null,null,null,null,null,"Código:",null,"GRF-232"]
[null,"Objetivo:",null,"Determinar el porcentaje de expedición de Certificados de Disponibilidad Presupuestal en la Sección de Presupuesto.",null,null,null,null,null,"Proceso asociado:",null,"Gestión de Recursos Financieros"]
[null,"ÁMBITO DEL INDICADOR"]
[null,"Tipo de Indicador:",null,null,null,null,null,null,null,"Nivel de Intervención:"]
[null,"Alineación con el Plan Estratégico de Desarrollo 2018 - 2030:",null,"Lineamiento 5",null,"5.13 Estudiar, detectar, tratar y eliminar los riesgos de corrupción, motivando la participación de la comunidad universitaria y de la sociedad en la vigilancia de la gestión y la protección del patrimonio de la Universidad. ",null,null,null,null,null,null,null,null,{"$f":"IF(D11=\"Lineamiento 1\",\"UNO\",IF(D11=\"Lineamiento 2\",\"DOS\",IF(D11=\"Lineamiento 3\",\"TRES\",IF(D11=\"Lineamiento 4\",\"CUATRO\",IF(D11=\"Lineamiento 5\",\"CINCO\")))))","v":"CINCO"}]
[null,null,null,null,null,null,null,null,null,null,null,null,null,null,{"$f":"IF(D12=\"Lineamiento 1\",\"UNO\",IF(D12=\"Lineamiento 2\",\"DOS\",IF(D12=\"Lineamiento 3\",\"TRES\",IF(D12=\"Lineamiento 4\",\"CUATRO\",IF(D12=\"Lineamiento 5\",\"CINCO\")))))","v":false}]
[null,"Alineación Factor y Característica de Acreditación Institucional:",null,null,null,null,null,null,null,null,null,null,null,null,{"$f":"VLOOKUP(D13,[1]Información!$M$28:$N$39,2,FALSE)","v":{"$error":"#N/A"}}]
[null,null,null,null,null,null,null,null,null,null,null,null,null,null,{"$f":"VLOOKUP(D14,[1]Información!$M$28:$N$39,2,FALSE)","v":{"$error":"#N/A"}}]
[null," FORMA DE CÁLCULO"]
[null,"Fórmula",null,null,null,null,"Unidad de Medida",null,null,"Tendencia esperada del Indicador",null,"Meta o Valor Esperado"]
[]
[null,"(Número de CDP expedidos / Número de CDP solicitados)*100",null,null,null,null,"Porcentaje",null,null,"              Creciente",null,100]
[null,null,null,null,null,null,null,null,null,"              Decreciente"]
[null,null,null,null,null,null,null,null,null,"              Estático"]
[null," VARIABLES DEL INDICADOR"]
[null,"Nombre",null,null,null,null,"Unidad de Medida",null,null,"Fuente de Información "]
[null,"Número de CDP expedidos",null,null,null,null,"Número",null,null,"Sección de Presupuesto, Sistema de Información Presupuestal UD y TIKE"]
[]
[null,"Número de CDP solicitados",null,null,null,null,"Número",null,null,"Sección de Presupuesto, Sistema de Información Presupuestal UD y TIKE"]
[]
[]
[]
[null," RANGOS DE EVALUACIÓN",null,null,null,null,null,"PERIODICIDAD DE MEDICIÓN",null,null,"REPORTE DEL INDICADOR"]
[null,"Crítico",null,"En Riesgo",null,"Adecuado",null,"        Anual                              Trimestral",null,null,"         Líder del Proceso"]
[null,"0%-74%",null,"75%-89%",null,"90% - 100%",null,"        Semestral                        Mensual",null,null,"         Gestor del Proceso"]
[null,null,null,null,null,null,null,"        Cuatrimestral",null,null,"         Automático (sistema de información)"]
[null," INTERPRETACIÓN DE LOS RESULTADOS DEL INDICADOR (Cómo se lee el Indicador)"]
[null,"El resultado muestra cuál es la proporción de Porcentaje De expedición de Certificados de Disponibilidad Presupuestal respecto a los solicitados por los ordenadores del gasto."]
[null,"INSTRUCCIONES PARA EL CÁLCULO DE VARIABLES"]
[null,"Numerador:"]
[null,"1.","Al final del periodo, la Sección de Presupuesto, ingresa al Sistema de Información Presupuestal UD y TIKE e identifica el consecutivo de los CDPs que fueron expedidos en el periodo."]
[null,"2."]
[null,"3."]
[null,"Denominador:"]
[null,"1.","Al final del periodo, la Sección de Presupuesto, ingresa al Sistema de Información Presupuestal UD y TIKE e identifica el consecutivo los CDPs que fueron solicitados en el periodo."]
[null,"2."]
[null,"3."]
[null," DEFINICIÓN DE TÉRMINOS"]
[null,"Certificado de Disponibilidad Presupuestal: Es el documento mediante el cual se garantiza el principio de legalidad, es decir, la existencia del rubro y la apropiación presupuestal suficiente para atender un gasto determinado. Es expedido por el jefe de presupuesto o quien haga sus veces."]
[null,null,null,null,null,null,null,null,null,null,null,null,null,null,{"$f":"UPPER(B46)","v":""}]
[null,null,null,null,null,null,null,null,null,null,null,null,null,null,{"$f":"UPPER(B47)","v":""}]
[null,null,null,null,null,null,null,null,null,null,null,null,null,null,{"$f":"UPPER(B48)","v":""}]
[null,null,null,null,null,null,null,null,null,null,null,null,null,null,{"$f":"UPPER(B49)","v":""}]
[null," RESPONSABLES DE LA MEDICIÓN"]
[null,"Nivel:",null,null,"Consolidar y Reportar Datos",null,null,"Seguimiento y Análisis",null,null,"Toma de Decisiones"]
[null,"Cargo:",null,null,"Profesional de la Sección de Presupuesto",null,null,"Jefe de la Sección de Presupuesto",null,null,"Vicerrector Administrativo y Financiero, Rector"]
[null,"VERIFICACIÓN Y APROBACIÓN"]
[null,"Elaboró",null,null,null,"Revisó",null,null,null,"Aprobó"]
[null,"Nombre:","Equipo SIGUD.",null,null,"Nombre:","Franklin Wilches Reyes ",null,null,"Nombre:","Eusebio Antonio Rangel Roa."]
[null,"Cargo:","N/A.",null,null,"Cargo:","Jefe Sección de Presupuesto",null,null,"Cargo:","Jefe División Recursos Financieros."]
[null,"Fecha:","2022-06-13",null,null,"Fecha:","2022-06-13",null,null,"Fecha:","2022-06-13"]
[]
[null,"Fecha",null,"Versión",null,null,"Cambios",null,null,"Justificación del Cambio"]
[null,"2017-12-12",null,1,null,null,"Creación documento",null,null,"Creación documento"]
[null,"2022-06-13",null,2,null,null,"Se ajusta el Nombre, Objetivo, Fórmula, Fuente de información e Instrucciones para el cálculo de cada Variable: Numerador y  Denominador",null,null,"Dar mas claridad frente a la información del documento."]

{"sheet":"GRF-233","index":9,"n_rows":61,"n_cols":15,"rows_kept":61,"cut":false,"hidden":false,"merged":[[60,1,60,2],[60,3,60,5],[60,6,60,8],[60,9,60,12],[57,1,57,12],[58,1,58,2],[58,3,58,5],[58,6,58,8],[58,9,58,12],[59,1,59,2],[59,3,59,5],[59,6,59,8],[59,9,59,12],[55,2,55,4],[55,6,55,8],[55,10,55,12],[56,2,56,4],[56,6,56,8],[56,10,56,12],[52,1,52,12],[53,1,53,4],[53,5,53,8],[53,9,53,12],[54,2,54,4],[54,6,54,8],[54,10,54,12],[50,1,50,3],[50,4,50,6],[50,7,50,9],[50,10,50,12],[51,1,51,3],[51,4,51,6],[51,7,51,9],[51,10,51,12],[44,1,44,12],[45,1,45,12],[46,1,46,12],[47,1,47,12],[48,1,48,12],[49,1,49,12],[38,2,38,12],[39,2,39,12],[40,2,40,12],[41,2,41,12],[42,2,42,12],[43,1,43,12],[32,1,32,12],[33,1,33,12],[34,1,34,12],[35,2,35,12],[36,2,36,12],[37,2,37,12],[30,1,31,2],[30,3,31,4],[30,5,31,6],[30,7,30,9],[30,10,30,12],[31,10,31,12],[28,1,28,6],[28,7,28,9],[28,10,28,12],[29,1,29,2],[29,3,29,4],[29,5,29,6],[29,7,29,9],[29,10,29,12],[24,1,25,5],[24,6,25,8],[24,9,25,12],[26,1,27,5],[26,6,27,8],[26,9,27,12],[20,1,20,12],[21,1,21,5],[21,6,21,8],[21,9,21,12],[22,1,23,5],[22,6,23,8],[22,9,23,12],[14,1,14,12],[15,1,16,5],[15,6,16,8],[15,9,16,10],[15,11,16,12],[17,1,19,5],[17,6,19,8],[17,11,19,12],[10,1,11,2],[10,3,10,4],[10,5,10,12],[11,3,11,4],[11,5,11,12],[12,1,13,2],[12,3,12,4],[12,5,12,12],[13,3,13,4],[13,5,13,12],[7,1,7,2],[7,3,7,8],[7,9,7,10],[7,11,7,12],[8,1,8,12],[9,1,9,2],[9,3,9,8],[9,9,9,10],[9,11,9,12],[4,1,4,12],[5,1,5,12],[6,1,6,2],[6,3,6,8],[6,9,6,10],[6,11,6,12],[1,1,3,2],[1,3,1,8],[1,9,1,10],[1,11,3,12],[2,3,2,8],[2,9,2,10],[3,3,3,8],[3,9,3,10]]}
[null,null,null,null,null,null,null,null,null,null,null,null," "]
[null,null,null,"HOJA DE VIDA DE INDICADOR",null,null,null,null,null,"Código:  GI-GUI-002-FR-004"]
[null,null,null,"Macroproceso: Direccionamiento Estratégico",null,null,null,null,null,"Versión: 03"]
[null,null,null,"Proceso: Gestión Integrada",null,null,null,null,null,"Fecha de Aprobación: 14/06/2019"]
[]
[null,"IDENTIFICACIÓN DEL INDICADOR"]
[null,"Nombre:",null,"Expedición Certificados de Registro Presupuestal",null,null,null,null,null,"Código:",null,"GRF-233"]
[null,"Objetivo:",null,"Determinar el porcentaje de expedición de Certificados de Registro Presupuestal en la Sección de Presupuesto.",null,null,null,null,null,"Proceso asociado:",null,"Gestión de Recursos Financieros"]
[null,"ÁMBITO DEL INDICADOR"]
[null,"Tipo de Indicador:",null,null,null,null,null,null,null,"Nivel de Intervención:"]
[null,"Alineación con el Plan Estratégico de Desarrollo 2018 - 2030:",null,"Lineamiento 5",null,"5.13 Estudiar, detectar, tratar y eliminar los riesgos de corrupción, motivando la participación de la comunidad universitaria y de la sociedad en la vigilancia de la gestión y la protección del patrimonio de la Universidad. ",null,null,null,null,null,null,null,null,{"$f":"IF(D11=\"Lineamiento 1\",\"UNO\",IF(D11=\"Lineamiento 2\",\"DOS\",IF(D11=\"Lineamiento 3\",\"TRES\",IF(D11=\"Lineamiento 4\",\"CUATRO\",IF(D11=\"Lineamiento 5\",\"CINCO\")))))","v":"CINCO"}]
[null,null,null,null,null,null,null,null,null,null,null,null,null,null,{"$f":"IF(D12=\"Lineamiento 1\",\"UNO\",IF(D12=\"Lineamiento 2\",\"DOS\",IF(D12=\"Lineamiento 3\",\"TRES\",IF(D12=\"Lineamiento 4\",\"CUATRO\",IF(D12=\"Lineamiento 5\",\"CINCO\")))))","v":false}]
[null,"Alineación Factor y Característica de Acreditación Institucional:",null,null,null,null,null,null,null,null,null,null,null,null,{"$f":"VLOOKUP(D13,[2]Información!$M$28:$N$39,2,FALSE)","v":{"$error":"#N/A"}}]
[null,null,null,null,null,null,null,null,null,null,null,null,null,null,{"$f":"VLOOKUP(D14,[2]Información!$M$28:$N$39,2,FALSE)","v":{"$error":"#N/A"}}]
[null," FORMA DE CÁLCULO"]
[null,"Fórmula",null,null,null,null,"Unidad de Medida",null,null,"Tendencia esperada del Indicador",null,"Meta o Valor Esperado"]
[]
[null,"(Número de CRP expedidos / Número de CRP solicitados)*100",null,null,null,null,"Porcentaje ",null,null,"              Creciente",null,100]
[null,null,null,null,null,null,null,null,null,"              Decreciente"]
[null,null,null,null,null,null,null,null,null,"              Estático"]
[null," VARIABLES DEL INDICADOR"]
[null,"Nombre",null,null,null,null,"Unidad de Medida",null,null,"Fuente de Información "]
[null,"Número de CRP expedidos",null,null,null,null,"Número",null,null,"Sección de Presupuesto, Sistema de Información Presupuestal UD y TIKE"]
[]
[null,"Número de CRP solicitados",null,null,null,null,"Número",null,null,"Sección de Presupuesto, Sistema de Información Presupuestal UD y TIKE"]
[]
[]
[]
[null," RANGOS DE EVALUACIÓN",null,null,null,null,null,"PERIODICIDAD DE MEDICIÓN",null,null,"REPORTE DEL INDICADOR"]
[null,"Crítico",null,"En Riesgo",null,"Adecuado",null,"        Anual                              Trimestral",null,null,"         Líder del Proceso"]
[null,"0%-74%",null,"75%-89%",null,"90% - 100%",null,"        Semestral                        Mensual",null,null,"         Gestor del Proceso"]
[null,null,null,null,null,null,null,"        Cuatrimestral",null,null,"         Automático (sistema de información)"]
[null," INTERPRETACIÓN DE LOS RESULTADOS DEL INDICADOR (Cómo se lee el Indicador)"]
[null,"El resultado muestra cuál es la proporción de Porcentaje de expedición de Certificados de Registro Presupuestal (compromisos) respecto a los solicitados por los ordenadores del gasto."]
[null,"INSTRUCCIONES PARA EL CÁLCULO DE VARIABLES"]
[null,"Numerador:"]
[null,"1.","Al final del periodo, la Sección de Presupuesto, ingresa al Sistema de Información Presupuestal UD y TIKE e identifica el consecutivo de los CRPs que fueron expedidos en el periodo."]
[null,"2."]
[null,"3."]
[null,"Denominador:"]
[null,"1.","Al final del periodo, la Sección de Presupuesto, ingresa al Sistema de Información Presupuestal UD y TIKE e identifica el consecutivo los CRPs que fueron solicitados en el periodo."]
[null,"2."]
[null,"3."]
[null," DEFINICIÓN DE TÉRMINOS"]
[null,"Certificado de Registro Presupuestal: Corresponde a la operacón presupuestal mediante la cual se garantiza la existencia de recursos para atender los compromisos legalmente contraídos para que no sean destinados a ningún otro fin y se afecta en forma definitiva la apropiación presupuestal.  Con este Acto se perfecciona el compromiso."]
[null,null,null,null,null,null,null,null,null,null,null,null,null,null,{"$f":"UPPER(B46)","v":""}]
[null,null,null,null,null,null,null,null,null,null,null,null,null,null,{"$f":"UPPER(B47)","v":""}]
[null,null,null,null,null,null,null,null,null,null,null,null,null,null,{"$f":"UPPER(B48)","v":""}]
[null,null,null,null,null,null,null,null,null,null,null,null,null,null,{"$f":"UPPER(B49)","v":""}]
[null," RESPONSABLES DE LA MEDICIÓN"]
[null,"Nivel:",null,null,"Consolidar y Reportar Datos",null,null,"Seguimiento y Análisis",null,null,"Toma de Decisiones"]
[null,"Cargo:",null,null,"Profesional de la Sección de Presupuesto",null,null,"Jefe de la Sección de Presupuesto",null,null,"Vicerrector Administrativo y Financiero, Rector"]
[null,"VERIFICACIÓN Y APROBACIÓN"]
[null,"Elaboró",null,null,null,"Revisó",null,null,null,"Aprobó"]
[null,"Nombre:","Equipo SIGUD.",null,null,"Nombre:","Franklin Wilches Reyes",null,null,"Nombre:","Eusebio Antonio Rangel Roa."]
[null,"Cargo:","N/A.",null,null,"Cargo:","Jefe Sección de Presupuesto.",null,null,"Cargo:","Jefe División Recursos Financieros."]
[null,"Fecha:","2022-06-13",null,null,"Fecha:","2022-06-13",null,null,"Fecha:","2022-06-13"]
[]
[null,"Fecha",null,"Versión",null,null,"Cambios",null,null,"Justificación del Cambio"]
[null,"2017-12-12",null,1,null,null,"Creación documento",null,null,"Creación documento"]
[null,"2022-06-13",null,2,null,null,"Se ajusta el Nombre, Objetivo, Fórmula, Fuente de información e Instrucciones para el cálculo de cada Variable: Numerador y  Denominador",null,null,"Dar mas claridad frente a la información del documento."]

{"sheet":"GRF-234","index":10,"n_rows":62,"n_cols":15,"rows_kept":62,"cut":false,"hidden":false,"merged":[[4,1,4,12],[5,1,5,12],[6,1,6,2],[6,3,6,8],[6,9,6,10],[6,11,6,12],[1,1,3,2],[1,3,1,8],[1,9,1,10],[1,11,3,12],[2,3,2,8],[2,9,2,10],[3,3,3,8],[3,9,3,10],[7,1,7,2],[7,3,7,8],[7,9,7,10],[7,11,7,12],[8,1,8,12],[9,1,9,2],[9,3,9,8],[9,9,9,10],[9,11,9,12],[14,1,14,12],[15,1,16,5],[15,6,16,8],[15,9,16,10],[15,11,16,12],[17,1,19,5],[17,6,19,8],[17,11,19,12],[10,1,11,2],[10,3,10,4],[10,5,10,12],[11,3,11,4],[11,5,11,12],[12,1,13,2],[12,3,12,4],[12,5,12,12],[13,3,13,4],[13,5,13,12],[24,1,25,5],[24,6,25,8],[24,9,25,12],[26,1,27,5],[26,6,27,8],[26,9,27,12],[20,1,20,12],[21,1,21,5],[21,6,21,8],[21,9,21,12],[22,1,23,5],[22,6,23,8],[22,9,23,12],[30,1,31,2],[30,3,31,4],[30,5,31,6],[30,7,30,9],[30,10,30,12],[31,10,31,12],[28,1,28,6],[28,7,28,9],[28,10,28,12],[29,1,29,2],[29,3,29,4],[29,5,29,6],[29,7,29,9],[29,10,29,12],[38,2,38,12],[39,2,39,12],[40,2,40,12],[41,2,41,12],[42,2,42,12],[43,1,43,12],[32,1,32,12],[33,1,33,12],[34,1,34,12],[35,2,35,12],[36,2,36,12],[37,2,37,12],[50,1,50,3],[50,4,50,6],[50,7,50,9],[50,10,50,12],[51,1,51,3],[51,4,51,6],[51,7,51,9],[51,10,51,12],[44,1,44,12],[45,1,45,12],[46,1,46,12],[47,1,47,12],[48,1,48,12],[49,1,49,12],[55,2,55,4],[55,6,55,8],[55,10,55,12],[56,2,56,4],[56,6,56,8],[56,10,56,12],[52,1,52,12],[53,1,53,4],[53,5,53,8],[53,9,53,12],[54,2,54,4],[54,6,54,8],[54,10,54,12],[61,1,62,2],[61,3,62,5],[61,6,62,8],[61,9,62,12],[57,1,57,12],[58,1,58,2],[58,3,58,5],[58,6,58,8],[58,9,58,12],[59,1,60,2],[59,3,60,5],[59,6,60,8],[59,9,60,12]]}
[null,null,null,null,null,null,null,null,null,null,null,null," "]
[null,null,null,"HOJA DE VIDA DE INDICADOR",null,null,null,null,null,"Código:  GI-GUI-002-FR-004"]
[null,null,null,"Macroproceso: Direccionamiento Estratégico",null,null,null,null,null,"Versión: 03"]
[null,null,null,"Proceso: Gestión Integrada",null,null,null,null,null,"Fecha de Aprobación: 14/06/2019"]
[]
[null,"IDENTIFICACIÓN DEL INDICADOR"]
[null,"Nombre:",null,"Órdenes de pago tramitadas",null,null,null,null,null,"Código:",null,"GRF-234"]
[null,"Objetivo:",null,"Determinar el porcentaje de las solicitudes de órdenes de pago que alcanzan a tramitarse.",null,null,null,null,null,"Proceso asociado:",null,"Gestión de Recursos Financieros"]
[null,"ÁMBITO DEL INDICADOR"]
[null,"Tipo de Indicador:",null,null,null,null,null,null,null,"Nivel de Intervención:",null,"Resultados"]
[null,"Alineación con el Plan Estratégico de Desarrollo 2018 - 2030:",null,"Lineamiento 5",null,"5.13 Estudiar, detectar, tratar y eliminar los riesgos de corrupción, motivando la participación de la comunidad universitaria y de la sociedad en la vigilancia de la gestión y la protección del patrimonio de la Universidad. ",null,null,null,null,null,null,null,null,{"$f":"IF(D11=\"Lineamiento 1\",\"UNO\",IF(D11=\"Lineamiento 2\",\"DOS\",IF(D11=\"Lineamiento 3\",\"TRES\",IF(D11=\"Lineamiento 4\",\"CUATRO\",IF(D11=\"Lineamiento 5\",\"CINCO\")))))","v":"CINCO"}]
[null,null,null,null,null,null,null,null,null,null,null,null,null,null,{"$f":"IF(D12=\"Lineamiento 1\",\"UNO\",IF(D12=\"Lineamiento 2\",\"DOS\",IF(D12=\"Lineamiento 3\",\"TRES\",IF(D12=\"Lineamiento 4\",\"CUATRO\",IF(D12=\"Lineamiento 5\",\"CINCO\")))))","v":false}]
[null,"Alineación Factor y Característica de Acreditación Institucional:",null,null,null,null,null,null,null,null,null,null,null,null,{"$f":"VLOOKUP(D13,[3]Información!$M$28:$N$39,2,FALSE)","v":{"$error":"#N/A"}}]
[null,null,null,null,null,null,null,null,null,null,null,null,null,null,{"$f":"VLOOKUP(D14,[3]Información!$M$28:$N$39,2,FALSE)","v":{"$error":"#N/A"}}]
[null," FORMA DE CÁLCULO"]
[null,"Fórmula",null,null,null,null,"Unidad de Medida",null,null,"Tendencia esperada del Indicador",null,"Meta o Valor Esperado"]
[]
[null,"((Número de órdenes de pago elaboradas / Número de órdenes de pago recibidas  )*100",null,null,null,null,"Porcentaje ",null,null,"              Creciente",null,100]
[null,null,null,null,null,null,null,null,null,"              Decreciente"]
[null,null,null,null,null,null,null,null,null,"              Estático"]
[null," VARIABLES DEL INDICADOR"]
[null,"Nombre",null,null,null,null,"Unidad de Medida",null,null,"Fuente de Información "]
[null,"Número  de órdenes de pago elaboradas",null,null,null,null,"Número",null,null,"División de Recursos Financieros"]
[]
[null,"Número  de órdenes de pago recibidas",null,null,null,null,"Número",null,null,"División de Recursos Financieros"]
[]
[]
[]
[null," RANGOS DE EVALUACIÓN",null,null,null,null,null,"PERIODICIDAD DE MEDICIÓN",null,null,"REPORTE DEL INDICADOR"]
[null,"Crítico",null,"En Riesgo",null,"Adecuado",null,"        Anual                              Trimestral",null,null,"         Líder del Proceso"]
[null,"0%-84%",null,"85%-94%",null,"95% - 100%",null,"        Semestral                        Mensual",null,null,"         Gestor del Proceso"]
[null,null,null,null,null,null,null,"        Cuatrimestral",null,null,"         Automático (sistema de información)"]
[null," INTERPRETACIÓN DE LOS RESULTADOS DEL INDICADOR (Cómo se lee el Indicador)"]
[null,"El resultado muestra cuál es  la proporción de ordenes de pago elaboradas de acuerdo a las ordenes de pago recibidas"]
[null,"INSTRUCCIONES PARA EL CÁLCULO DE VARIABLES"]
[null,"Numerador:"]
[null,"1.","Al final del periodo, la División de Recursos Financieros calcula el número de solicitudes de órdenes de pago recibidas  en el mes."]
[null,"2."]
[null,"3."]
[null,"Denominador:"]
[null,"1.","Al final del periodo, la División de Recursos Financieros calcula el número de  órdenes de pago recibidas  en el mes."]
[null,"2."]
[null,"3."]
[null," DEFINICIÓN DE TÉRMINOS"]
[]
[null,"Orden de pago: Mandato expreso que una persona física o jurídica (ordenante), hace a su entidad bancaria (banco emisor), para que directamente o a través de otra entidad ponga a disposición de un tercero, (beneficiario), una determinada cantidad dinero.",null,null,null,null,null,null,null,null,null,null,null,null,{"$f":"UPPER(B46)","v":"ORDEN DE PAGO: MANDATO EXPRESO QUE UNA PERSONA FÍSICA O JURÍDICA (ORDENANTE), HACE A SU ENTIDAD BANCARIA (BANCO EMISOR), PARA QUE DIRECTAMENTE O A TRAVÉS DE OTRA ENTIDAD PONGA A DISPOSICIÓN DE UN TERCERO, (BENEFICIARIO), UNA DETERMINADA CANTIDAD DINERO."}]
[null,null,null,null,null,null,null,null,null,null,null,null,null,null,{"$f":"UPPER(B47)","v":""}]
[null,null,null,null,null,null,null,null,null,null,null,null,null,null,{"$f":"UPPER(B48)","v":""}]
[null,null,null,null,null,null,null,null,null,null,null,null,null,null,{"$f":"UPPER(B49)","v":""}]
[null," RESPONSABLES DE LA MEDICIÓN"]
[null,"Nivel:",null,null,"Consolidar y Reportar Datos",null,null,"Seguimiento y Análisis",null,null,"Toma de Decisiones"]
[null,"Cargo:",null,null,"Profesional de la División de Recursos Financieros",null,null,"Jefe División Recursos Financieros",null,null,"Vicerrector Administrativo y Financiero, Rector"]
[null,"VERIFICACIÓN Y APROBACIÓN"]
[null,"Elaboró",null,null,null,"Revisó",null,null,null,"Aprobó"]
[null,"Nombre:","Equipo SIGUD.",null,null,"Nombre:","Eusebio Antonio Rangel Roa.",null,null,"Nombre:","Eusebio Antonio Rangel Roa."]
[null,"Cargo:","N/A.",null,null,"Cargo:","Jefe División Recursos Financieros.",null,null,"Cargo:","Jefe División Recursos Financieros."]
[null,"Fecha:","2022-07-18",null,null,"Fecha:","2022-07-18",null,null,"Fecha:","2022-07-18"]
[]
[null,"Fecha",null,"Versión",null,null,"Cambios",null,null,"Justificación del Cambio"]
[null,"2017-12-12",null,1,null,null,"Se crea el documento"]
[]
[null,"2022-07-18",null,2,null,null,"Se ajusta la Fórmula e Instrucciones para el cálculo de cada Variable: Numerador y  Denominador",null,null,"Actualización documental"]

{"sheet":"GRF-235","index":11,"n_rows":76,"n_cols":13,"rows_kept":76,"cut":false,"hidden":false,"merged":[[28,1,29,5],[30,1,31,5],[28,6,29,8],[30,6,31,8],[40,1,40,12],[33,1,33,2],[33,4,33,5],[37,1,39,2],[37,3,39,4],[36,5,36,6],[34,1,34,2],[34,6,34,12],[36,7,36,8],[36,9,36,10],[28,9,29,12],[30,9,31,12],[36,11,36,12],[35,7,35,12],[34,4,34,5],[33,7,33,8],[33,10,33,11],[35,1,35,6],[36,1,36,2],[36,3,36,4],[8,9,8,10],[8,11,8,12],[9,3,9,12],[10,1,10,12],[20,1,20,12],[21,11,22,12],[21,6,22,7],[21,8,21,10],[14,1,14,2],[15,1,19,2],[1,1,3,2],[1,3,1,8],[1,9,1,10],[1,11,3,12],[2,3,2,8],[2,9,2,10],[3,3,3,8],[3,9,3,10],[4,1,4,12],[5,1,5,12],[7,1,7,12],[27,6,27,8],[27,1,27,5],[32,1,32,12],[26,1,26,12],[27,9,27,12],[21,1,22,5],[23,11,25,12],[23,1,25,5],[23,6,25,7],[23,8,25,8],[23,9,25,9],[23,10,25,10],[14,7,14,12],[15,7,19,12],[14,3,14,6],[15,3,19,6],[11,1,11,3],[11,7,11,9],[13,1,13,12],[8,1,8,2],[9,1,9,2],[8,3,8,8],[37,7,39,8],[37,9,39,10],[37,11,39,12],[45,5,45,7],[45,9,45,11],[44,5,44,7],[43,9,43,11],[44,9,44,11],[41,5,41,12],[37,5,39,6],[44,8,47,8],[42,5,42,7],[43,5,43,7],[42,9,42,11],[47,5,47,7],[48,1,48,12],[41,1,41,4],[49,1,51,12],[52,1,52,12],[53,2,53,12],[54,2,54,12],[42,1,47,3],[42,8,43,8],[46,9,47,11],[46,12,47,12],[46,5,46,7],[55,2,55,12],[56,2,56,12],[68,7,68,9],[68,10,68,12],[57,2,57,12],[58,2,58,12],[59,2,59,12],[60,2,60,12],[61,1,61,12],[62,1,65,12],[66,1,66,12],[67,1,67,3],[68,1,68,3],[69,1,69,12],[70,1,70,4],[70,5,70,8],[70,9,70,12],[67,4,67,6],[68,4,68,6],[67,7,67,9],[67,10,67,12],[75,6,75,8],[75,9,75,12],[71,2,71,4],[72,2,72,4],[73,2,73,4],[71,6,71,8],[72,6,72,8],[73,6,73,8],[76,9,78,12],[76,6,78,8],[76,3,78,5],[76,1,78,2],[71,10,71,12],[72,10,72,12],[73,10,73,12],[74,1,74,12],[75,1,75,2],[75,3,75,5]]}
[]
[null,null,null,"FORMATO: HOJA DE VIDA DEL INDICADOR",null,null,null,null,null,"Código:  GI-GUI-002-FR-004"]
[null,null,null,"Macroproceso: Direccionamiento Estratégico",null,null,null,null,null,"Versión: 03"]
[null,null,null,"Proceso: Gestión Integrada",null,null,null,null,null,"Fecha de Aprobación: 17/09/2014\n"]
[]
[null,"HOJA DE VIDA DEL INDICADOR"]
[]
[null,"DESCRIPCIÓN DEL INDICADOR"]
[null,"Nombre:",null,"Registro de ingresos",null,null,null,null,null,"Código:",null,"GC-235"]
[null,"Objetivo:",null,"Determinar el nivel con que son identificados y registrados los ingresos propios que recibe la Universidad en las cuentas bancarias."]
[]
[null,"Fecha de Creación",null,null,12,12,2017,"Fecha de Actualización",null,null,12,12,2017]
[]
[null," DESCRIPCIÓN DEL PROCESO"]
[null,"PROCESO",null,"OBJETIVO DEL PROCESO",null,null,null,"ALINEADO AL PLAN ESTRATÉGICO DE DESARROLLO"]
[null,"Gestión de Recursos Financieros",null,"Administrar, gestionar, registrar y controlar los recursos financieros en la Universidad Distrital Francisco José Caldas, cumpliendo con el marco, constitucional,  legal y normativo vigente; garantizando la transparencia y sostenibilidad financiera de acuerdo a los lineamientos establecidos en el contexto estratégico y misional de la institución.",null,null,null,"Lineamiento Estratégico 4. Garantizar, gestionar y proveer las condiciones institucionales, para el cumplimiento de las funciones universitarias y el bienestar de la comunidad.\n\nEstrategia 4.6 Participación efectiva, sostenible y transparente en la gestión administrativa y financiera."]
[]
[]
[]
[]
[null," FORMA DE CÁLCULO"]
[null,"FÓRMULA",null,null,null,null,"Unidad de Medida",null,"Tendencia esperada del Indicador",null,null,"Meta o Valor Esperado"]
[null,null,null,null,null,null,null,null,"Creciente","Decreciente","Estático"]
[null,"(Valor total recaudado en bancos / Valor total registrado en libros)*100",null,null,null,null,"Porcentaje",null,"X",null,null,1]
[]
[]
[null," VARIABLES DEL INDICADOR"]
[null,"NOMBRE",null,null,null,null,"UNIDAD DE MEDIDA",null,null,"FUENTE DE INFORMACIÓN"]
[null,"Valor total recaudado en bancos",null,null,null,null,"Número",null,null,"Tesorería General, Sistema de Información, OCCIRED"]
[]
[null,"Valor total registrado en libros",null,null,null,null,"Número",null,null,"Tesorería General, Sistema de Información, SIIGO"]
[]
[null," PERIODICIDAD DE LA MEDICIÓN DEL INDICADOR"]
[null,"Mensual",null,"X","Trimestral",null,null,"Semestral",null,null,"Anual"]
[null,"Otro",null,null,"Cuál?"]
[null," RANGOS DE EVALUACIÓN",null,null,null,null,null,"QUIÉN REPORTA EL INDICADOR AL TABLERO"]
[null,"Crítico",null,"En Riesgo",null,"Adecuado",null,"Líder del Proceso",null,"Gestor del Proceso",null,"Equipo SIGUD"]
[null,"0%-74%",null,"75%-89%",null,"90% - 100%",null,null,null,"X"]
[]
[]
[null," TIPO DE INDICADOR"]
[null,"Nivel de Medición",null,null,null,"Dimensión de Evaluación"]
[null,"Intervención ",null,null,null,"Impacto",null,null,"Jerarquía","Estratégicos "]
[null,null,null,null,"X","Resultados ",null,null,null,"Gestión",null,null,"X"]
[null,null,null,null,null,"Producto",null,null,"Calidad","Eficacia",null,null,"X"]
[null,null,null,null,null,"Proceso",null,null,null,"Eficiencia"]
[null,null,null,null,null,"Insumo",null,null,null,"Efectividad"]
[null,null,null,null,null,"Economía "]
[null," INTERPRETACIÓN DE LOS RESULTADOS DEL INDICADOR (Cómo se lee el Indicador)"]
[null,"El resultado es el porcentaje del total de los ingresos recaudados por el banco que han sido identificados y registrados."]
[]
[]
[null,"Instrucciones para el cálculo de cada Variable"]
[null,"Numerador:"]
[null,"1.","Al final del periodo, la Tesorería General, mediante el Sistema de Información OCCIRED, calcula el valor total recaudado en bancos."]
[null,"2."]
[null,"3."]
[null,"Denominador:"]
[null,"1.","Al final del periodo, la Tesorería General, mediante el Sistema de Información SIIGO, calcula el valor total registrado en libros."]
[null,"2."]
[null,"3."]
[null," Definición de Términos"]
[null,"OCCIRED: Portal de internet del banco\nSIIGO: Sistema Integrado de Información Gerencial Operativo"]
[]
[]
[]
[null," Responsables de la Medición"]
[null,"Nivel:",null,null,"Consolidar y Reportar Datos",null,null,"Seguimiento y Análisis",null,null,"Toma de Decisiones"]
[null,"Cargo:",null,null,"Profesional de la Tesorería General",null,null,"Tesorero(a) General",null,null,"Vicerrector Administrativo y Financiero, Rector"]
[null,"VERIFICACIÓN Y APROBACIÓN"]
[null,"ELABORÓ",null,null,null,"REVISÓ",null,null,null,"APROBÓ"]
[null,"Nombre:","Equipo SIGUD.",null,null,"Nombre:","Eusebio Antonio Rangel Roa.",null,null,"Nombre:","Eusebio Antonio Rangel Roa."]
[null,"Cargo:","N/A.",null,null,"Cargo:","Jefe División Recursos Financieros.",null,null,"Cargo:","Jefe División Recursos Financieros."]
[null,"Fecha:","12 de diciembre de 2017.",null,null,"Fecha:","12 de diciembre de 2017.",null,null,"Fecha:","12 de diciembre de 2017."]
[]
[null,"FECHA",null,"VERSIÓN",null,null,"CAMBIO",null,null,"MOTIVO"]

{"sheet":"GRF-236","index":12,"n_rows":76,"n_cols":13,"rows_kept":76,"cut":false,"hidden":false,"merged":[[28,1,29,5],[30,1,31,5],[28,6,29,8],[30,6,31,8],[40,1,40,12],[33,1,33,2],[33,4,33,5],[37,1,39,2],[37,3,39,4],[36,5,36,6],[34,1,34,2],[34,6,34,12],[36,7,36,8],[36,9,36,10],[28,9,29,12],[30,9,31,12],[36,11,36,12],[35,7,35,12],[34,4,34,5],[33,7,33,8],[33,10,33,11],[35,1,35,6],[36,1,36,2],[36,3,36,4],[8,9,8,10],[8,11,8,12],[9,3,9,12],[10,1,10,12],[20,1,20,12],[21,11,22,12],[21,6,22,7],[21,8,21,10],[14,1,14,2],[15,1,19,2],[1,1,3,2],[1,3,1,8],[1,9,1,10],[1,11,3,12],[2,3,2,8],[2,9,2,10],[3,3,3,8],[3,9,3,10],[4,1,4,12],[5,1,5,12],[7,1,7,12],[27,6,27,8],[27,1,27,5],[32,1,32,12],[26,1,26,12],[27,9,27,12],[21,1,22,5],[23,11,25,12],[23,1,25,5],[23,6,25,7],[23,8,25,8],[23,9,25,9],[23,10,25,10],[14,7,14,12],[15,7,19,12],[14,3,14,6],[15,3,19,6],[11,1,11,3],[11,7,11,9],[13,1,13,12],[8,1,8,2],[9,1,9,2],[8,3,8,8],[37,7,39,8],[37,9,39,10],[37,11,39,12],[45,5,45,7],[45,9,45,11],[44,5,44,7],[43,9,43,11],[44,9,44,11],[41,5,41,12],[37,5,39,6],[44,8,47,8],[42,5,42,7],[43,5,43,7],[42,9,42,11],[47,5,47,7],[48,1,48,12],[41,1,41,4],[49,1,51,12],[52,1,52,12],[53,2,53,12],[54,2,54,12],[42,1,47,3],[42,8,43,8],[46,9,47,11],[46,12,47,12],[46,5,46,7],[55,2,55,12],[56,2,56,12],[68,7,68,9],[68,10,68,12],[57,2,57,12],[58,2,58,12],[59,2,59,12],[60,2,60,12],[61,1,61,12],[62,1,65,12],[66,1,66,12],[67,1,67,3],[68,1,68,3],[69,1,69,12],[70,1,70,4],[70,5,70,8],[70,9,70,12],[67,4,67,6],[68,4,68,6],[67,7,67,9],[67,10,67,12],[75,6,75,8],[75,9,75,12],[71,2,71,4],[72,2,72,4],[73,2,73,4],[71,6,71,8],[72,6,72,8],[73,6,73,8],[76,9,78,12],[76,6,78,8],[76,3,78,5],[76,1,78,2],[71,10,71,12],[72,10,72,12],[73,10,73,12],[74,1,74,12],[75,1,75,2],[75,3,75,5]]}
[]
[null,null,null,"FORMATO: HOJA DE VIDA DEL INDICADOR",null,null,null,null,null,"Código:  GI-GUI-002-FR-004"]
[null,null,null,"Macroproceso: Direccionamiento Estratégico",null,null,null,null,null,"Versión: 03"]
[null,null,null,"Proceso: Gestión Integrada",null,null,null,null,null,"Fecha de Aprobación: 17/09/2014\n"]
[]
[null,"HOJA DE VIDA DEL INDICADOR"]
[]
[null,"DESCRIPCIÓN DEL INDICADOR"]
[null,"Nombre:",null,"Registros contables",null,null,null,null,null,"Código:",null,"GRF-236"]
[null,"Objetivo:",null,"Determinar la capacidad con que se reconocen contablemente los hechos económicos y financieros de la Universidad de acuerdo al marco normativo contable."]
[]
[null,"Fecha de Creación",null,null,12,12,2017,"Fecha de Actualización",null,null,12,12,2017]
[]
[null," DESCRIPCIÓN DEL PROCESO"]
[null,"PROCESO",null,"OBJETIVO DEL PROCESO",null,null,null,"ALINEADO AL PLAN ESTRATÉGICO DE DESARROLLO"]
[null,"Gestión de Recursos Financieros",null,"Administrar, gestionar, registrar y controlar los recursos financieros en la Universidad Distrital Francisco José Caldas, cumpliendo con el marco, constitucional,  legal y normativo vigente; garantizando la transparencia y sostenibilidad financiera de acuerdo a los lineamientos establecidos en el contexto estratégico y misional de la institución.",null,null,null,"Lineamiento Estratégico 4. Garantizar, gestionar y proveer las condiciones institucionales, para el cumplimiento de las funciones universitarias y el bienestar de la comunidad.\n\nEstrategia 4.6 Participación efectiva, sostenible y transparente en la gestión administrativa y financiera."]
[]
[]
[]
[]
[null," FORMA DE CÁLCULO"]
[null,"FÓRMULA",null,null,null,null,"Unidad de Medida",null,"Tendencia esperada del Indicador",null,null,"Meta o Valor Esperado"]
[null,null,null,null,null,null,null,null,"Creciente","Decreciente","Estático"]
[null,"(Número de registros contables realizados / Número de hechos económicos y financieros reportados)*100",null,null,null,null,"Porcentaje",null,"X",null,null,1]
[]
[]
[null," VARIABLES DEL INDICADOR"]
[null,"NOMBRE",null,null,null,null,"UNIDAD DE MEDIDA",null,null,"FUENTE DE INFORMACIÓN"]
[null,"Número de registros contables realizados",null,null,null,null,"Número",null,null,"Sección de Contabilidad, Sistema de Información SIIGO"]
[]
[null,"Número de hechos económicos y financieros reportados",null,null,null,null,"Número",null,null,"Sección de Contabilidad, reportes y conciliaciones de las diferentes Unidades Académicas y/o Administrativas"]
[]
[null," PERIODICIDAD DE LA MEDICIÓN DEL INDICADOR"]
[null,"Mensual",null,"X","Trimestral",null,null,"Semestral",null,null,"Anual"]
[null,"Otro",null,null,"Cuál?"]
[null," RANGOS DE EVALUACIÓN",null,null,null,null,null,"QUIÉN REPORTA EL INDICADOR AL TABLERO"]
[null,"Crítico",null,"En Riesgo",null,"Adecuado",null,"Líder del Proceso",null,"Gestor del Proceso",null,"Equipo SIGUD"]
[null,"0%-89%",null,"90%-94%",null,"95% - 100%",null,null,null,"X"]
[]
[]
[null," TIPO DE INDICADOR"]
[null,"Nivel de Medición",null,null,null,"Dimensión de Evaluación"]
[null,"Intervención ",null,null,null,"Impacto",null,null,"Jerarquía","Estratégicos "]
[null,null,null,null,"X","Resultados ",null,null,null,"Gestión",null,null,"X"]
[null,null,null,null,null,"Producto",null,null,"Calidad","Eficacia",null,null,"X"]
[null,null,null,null,null,"Proceso",null,null,null,"Eficiencia"]
[null,null,null,null,null,"Insumo",null,null,null,"Efectividad"]
[null,null,null,null,null,"Economía "]
[null," INTERPRETACIÓN DE LOS RESULTADOS DEL INDICADOR (Cómo se lee el Indicador)"]
[null,"El resultado muestra el porcentaje de los hechos económicos y financieros reportados por las diferentes Unidades Académicas y/o Administrativas de la Universidad que se han registrado y reconocido contablemente de acuerdo a lo establecido en el marco normativo contable. "]
[]
[]
[null,"Instrucciones para el cálculo de cada Variable"]
[null,"Numerador:"]
[null,"1.","Al final del periodo, la Sección de Contabilidad, mediante el Sistema de Información SIIGO, calcula el número de registros contables realizados."]
[null,"2."]
[null,"3."]
[null,"Denominador:"]
[null,"1.","Al final del periodo, la Sección de Contabilidad, mediante el Sistema de Información SIIGO, calcula el número de hechos económicos y financieros reportados."]
[null,"2."]
[null,"3."]
[null," Definición de Términos"]
[null,"SIIGO: Sistema Integrado de Información Gerencial Operativo \nRegistro contable:  actividad en la que se elaboran los comprobantes de contabilidad y se efectúan los asientos en los libros respectivos.                                                            Hecho económico: Cualquier actividad u operación que realice la Universidad."]
[]
[]
[]
[null," Responsables de la Medición"]
[null,"Nivel:",null,null,"Consolidar y Reportar Datos",null,null,"Seguimiento y Análisis",null,null,"Toma de Decisiones"]
[null,"Cargo:",null,null,"Profesional de la Sección de Contabilidad",null,null,"Jefe de la Sección de Contabilidad",null,null,"Vicerrector Administrativo y Financiero, Rector"]
[null,"VERIFICACIÓN Y APROBACIÓN"]
[null,"ELABORÓ",null,null,null,"REVISÓ",null,null,null,"APROBÓ"]
[null,"Nombre:","Equipo SIGUD.",null,null,"Nombre:","Eusebio Antonio Rangel Roa.",null,null,"Nombre:","Eusebio Antonio Rangel Roa."]
[null,"Cargo:","N/A.",null,null,"Cargo:","Jefe División Recursos Financieros.",null,null,"Cargo:","Jefe División Recursos Financieros."]
[null,"Fecha:","12 de diciembre de 2017.",null,null,"Fecha:","12 de diciembre de 2017.",null,null,"Fecha:","12 de diciembre de 2017."]
[]
[null,"FECHA",null,"VERSIÓN",null,null,"CAMBIO",null,null,"MOTIVO"]